Workbook

Sheet CFS wks (hidden)
A4: Depreciation workings
C5: PPE | E5: IA
A6: COS | B6: 391997 | C6: 342656 | E6: 49341
A7: Selling | B7: 85134 | C7: 85134 | E7: 0
A8: G&A | B8: 699147 | C8: 598586 | E8: 100561
B9: 1176278 | C9: 8721
C10: 1035097 | E10: 149902
A11: PPE | B11: -1035097 | C11: 0 | E11: 0
A12: IA | B12: -149902
B13: -1184999
B14: -8721
D15: IA
D16: COS | E16: Selling | F16: Adm
B17: Tsesna Corporation JSC | F17: 11738
B18: Tsesnabank JSC | F18: 87588
B19: Tsesna Capital LLC
B20: Medet Holding LLC | F20: 31
B21: Info-Tses LLC | D21: 1702 | F21: 66
B22: Concern Tsesna Astyk LLC | D22: 47639
B23: Zhaltyr Elevator LLC | F23: 68
B24: Tsesna Astyk Bread plant LLC | F24: 165
B25: Akmola Dirmen LLC
B26: Elevator Tsesna Astyk LLC | F26: 133
B27: Alma-Tses LLC | F27: 189
B28: Tsesna Mak LLC
B29: Astyk Logistic LLC | F29: 559
B30: Football Club Tsesna LLC | F30: 24
D31: 49341 | E31: 0 | F31: 100561
A34: IP
B37: 2009
B38: ’000 KZT
A40: At 1 January | B40: 20289376
A41: Additions | B41: 95495
A42: Transfer from advances paid | B42: 284475
A43: Transfer from inventory | B43: 12215
A44: Transfer (to)/from property, plant and equipment | B44: -65782
A45: Change in fair value | B45: 835194
A46: Disposals | B46: -139546
A47: At 31 December | B47: 21311427
A50: Impairment losses
A53: ’000 KZT | B53: Placements with banks and other financial | C53: Amounts receivable under reverse repur-chase agreements | D53: Held-to-maturity investments (Note 21) | E53: Loans to customers | F53: Trade and other receivables | G53: Investment in associate | H53: Property, plant and equipment | I53: Trade and other payables | J53: Total
B54: institutions | C54: (Note 18) | E54: (Note 22) | F54: (Note 23) | H54: (Note 26) | I54: (Note 31)
B55: (Note 17)
A57: 2009-01-01 | B57: 50000 | C57: - | D57: - | E57: 6224005 | F57: 583778 | G57: - | H57: - | I57: 159173 | J57: 7016956
A58: Net charge | B58: - | C58: - | D58: 288180 | E58: 3217301 | F58: 500680 | G58: 75051 | H58: 15406 | I58: -70000 | J58: 4026618
A59: Write-offs | B59: -1870 | C59: - | D59: - | E59: -658103 | F59: -15594 | G59: - | H59: - | I59: - | J59: -675567
A60: 2009-12-31 | B60: 48130 | C60: - | D60: 288180 | E60: 8783203 | F60: 1068864 | G60: 75051 | H60: 15406 | I60: 89173 | J60: 10383601
A64: PPE
A66: ’000 KZT | B66: Land and buildings | C66: Equipment and other | D66: Construction in progress | E66: Total
A67: Cost
A68: Balance at 31 December 2008 | B68: 7719712 | C68: 5108350 | D68: 3143268 | E68: 15971330
A69: Additions | B69: 117127 | C69: 326753 | D69: 3463159 | E69: 3907039
A70: Disposals | B70: -5672375 | C70: -123185 | D70: -40 | E70: -5795600
A71: Acquisition of subsidiary (Note 6) | B71: 534488 | C71: 42313 | D71: - | E71: 576801
A72: Disposal of subsidiaries (Note 6) | B72: - | C72: -32315 | D72: - | E72: -32315
A73: Transfer to inventory | B73: - | C73: - | D73: -179369 | E73: -179369
A74: Transfer from/(to) investment property | B74: 140849 | C74: - | D74: -71936 | E74: 68913
A75: Transfers | B75: 975510 | C75: 108686 | D75: -1084196 | E75: -
A76: Balance at 31 December 2009 | B76: 3815311 | C76: 5430602 | D76: 5270886 | E76: 14516799
A78: Depreciation and impairment losses
A79: Balance at 31 December 2008 | B79: -708944 | C79: -886262 | D79: - | E79: -1595206
A80: Depreciation charge | B80: -291732 | C80: -743365 | D80: - | E80: -1035097
A81: Impairment losses | B81: -15406 | C81: - | D81: - | E81: -15406
A82: Disposals | B82: 168133 | C82: 68748 | D82: - | E82: 236881
A83: Acquisition of subsidiary (Note 6) | B83: -15 | C83: -1398 | D83: - | E83: -1413
A84: Disposal of subsidiaries (Note 6) | B84: - | C84: 7069 | D84: - | E84: 7069
A85: Transfer from investment property | B85: -3131 | C85: - | D85: - | E85: -3131
A86: Balance at 31 December 2009 | B86: -851095 | C86: -1555208 | D86: - | E86: -2406303
A87: Net book value
A88: At 31 December 2008 | B88: 7010768 | C88: 4222088 | D88: 3143268 | E88: 14376124
A89: At 31 December 2009 | B89: 2964216 | C89: 3875394 | D89: 5270886 | E89: 12110496
A93: Proceeds from disposal of PPE
A94: =B111 -> 5608724
A97: Tsesna Corporation JSC | B97: 54032
A98: Tsesnabank JSC | B98: =4653909+873068 -> 5526977
A99: Tsesna Capital LLC | B99: 0
A100: Medet Holding LLC | B100: 410
A101: Info-Tses LLC | B101: 0
A102: Concern Tsesna Astyk LLC | B102: 10719
A103: Zhaltyr Elevator LLC | B103: 3604
A104: Tsesna Astyk Bread plant LLC | B104: 2129
A105: Akmola Dirmen LLC | B105: 0
A106: Elevator Tsesna Astyk LLC | B106: 0
A107: Alma-Tses LLC | B107: 10100
A108: Tsesna Mak LLC | B108: 0
A109: Astyk Logistic LLC | B109: 753
A110: Football Club Tsesna LLC | B110: 0
B111: =SUM(B97:B110) -> 5608724 | C111: > CFS
A113: Cash receivable for sale of PPE in Tsesnabank (to be eliminated through Trade and other receivables). Receivables for non-current assets sold in the rest companies are not material.
B114: 873068 | C114: > CFS
A116: Cash payable for acquisition of PPE in Tsesnabank (to be adjusted with trade payables). Payables for non-current assets in the rest companies are not material.
B118: 263056 | C118: > CFS
A121: Cash payable for acquisition of Intangibes in Tsesnabank (to be adjusted with trade payables). Payables for non-current assets in the rest companies are not material.
B122: 98698 | C122: > CFS
A125: Intangible assets
A127: ’000 KZT | B127: Patents and Trademarks | C127: Computer software | D127: Other | E127: Total
A128: Cost
A129: Balance at 31 December 2008 | B129: 319450 | C129: 452515 | D129: 49342 | E129: 821307
A130: Additions | B130: 465 | C130: 338667 | D130: 16324 | E130: 355456
A131: Acquisition of subsidiary (Note 6) | B131: - | C131: - | D131: 118 | E131: 118
A132: Disposal of subsidiaries (Note 6) | B132: - | C132: - | D132: -451 | E132: -451
A133: Disposals | B133: - | C133: -7353 | D133: -1514 | E133: -8867
A134: Balance at 31 December 2009 | B134: 319915 | C134: 783829 | D134: 63819 | E134: 1167563
A136: Amortisation
A137: Balance at 31 December 2008 | B137: -102144 | C137: -254060 | D137: -12223 | E137: -368427
A138: Amortisation charge | B138: -47639 | C138: -88147 | D138: -14116 | E138: -149902
A139: Acquisition of subsidiary (Note 6) | B139: - | C139: - | D139: -100 | E139: -100
A140: Disposal of subsidiaries (Note 6) | B140: - | C140: - | D140: 73 | E140: 73
A141: Disposals | B141: - | C141: 7305 | D141: 323 | E141: 7628
A142: Balance at 31 December 2009 | B142: -149783 | C142: -334902 | D142: -26043 | E142: -510728
A143: Net book value
A144: At 31 December 2008 | B144: 217306 | C144: 198455 | D144: 37119 | E144: 452880
A145: At 31 December 2009 | B145: 170132 | C145: 448927 | D145: 37776 | E145: 656835
A149: Proceeds from disposal of IA
A151: Tsesna Corporation JSC | B151: 0
A152: Tsesnabank JSC | B152: 0
A153: Tsesna Capital LLC | B153: 0
A154: Medet Holding LLC | B154: 0
A155: Info-Tses LLC | B155: 0
A156: Concern Tsesna Astyk LLC | B156: 0
A157: Zhaltyr Elevator LLC | B157: 0
A158: Tsesna Astyk Bread plant LLC | B158: 0
A159: Akmola Dirmen LLC | B159: 0
A160: Elevator Tsesna Astyk LLC | B160: 0
A161: Alma-Tses LLC | B161: 0
A162: Tsesna Mak LLC | B162: 0
A163: Astyk Logistic LLC | B163: 0
A164: Football Club Tsesna LLC | B164: 0
B165: =SUM(B151:B164) -> 0
A168: Investment property
B170: 2009
B171: ’000 KZT
A173: At 1 January | B173: 20289376
A174: Additions | B174: 95495
A175: Transfer from advances paid | B175: 284475
A176: Transfer from inventory | B176: 12215
A177: Transfer (to)/from property, plant and equipment | B177: -65782
A178: Change in fair value | B178: 835194
A179: Disposals | B179: -139546
A180: At 31 December | B180: 21311427
A184: Proceeds from disposal of IA
A186: Tsesna Corporation JSC | B186: 187629
A187: Tsesnabank JSC | B187: 0
A188: Tsesna Capital LLC | B188: 0
A189: Medet Holding LLC | B189: 42342
A190: Info-Tses LLC | B190: 0
A191: Concern Tsesna Astyk LLC | B191: 0
A192: Zhaltyr Elevator LLC | B192: 0
A193: Tsesna Astyk Bread plant LLC | B193: 0
A194: Akmola Dirmen LLC | B194: 0
A195: Elevator Tsesna Astyk LLC | B195: 0
A196: Alma-Tses LLC | B196: 0
A197: Tsesna Mak LLC | B197: 0
A198: Astyk Logistic LLC | B198: 0
A199: Football Club Tsesna LLC | B199: 0
B200: =SUM(B186:B199) -> 229971
A203: Trade and other receivables
B205: 2009
B206: ’000 KZT
A207: Advances paid for construction works | B207: 2948392
A208: Loans to related parties | B208: 1201479
A209: Advances paid for goods and services | B209: 3920141
A210: Trade receivables | B210: 3205322
A211: Tax receivables, other than income tax | B211: 661199
A212: Prepaid expenses | B212: -
A213: Other | B213: 255459
B214: 12191992
A215: Impairment allowance (Note 12) | B215: -1068864
B216: 11123128
A221: Trade and other payables
B224: 2009
B225: ’000 KZT
A226: Advances received under share holding agreements on construction | B226: 4565251
A227: Trade payables | B227: 2440217
A228: Advance billings under construction contracts | B228: 1704169
A229: Advances received for investment property to be sold to related parties | B229: 950000 | C229: Investing activity
A230: Taxes payable, other than income tax | B230: 573864
A231: Due to employees | B231: 185011
A232: Due to the Government of the Republic of Kazakhstan | B232: 90689
A233: Provision for off-balance sheet credit risk | B233: 89173
A234: Other | B234: 466186
B235: 11064560
A241: AFS
B243: 2009 | C243: 2008
B244: ’000 KZT | C244: ’000 KZT
A245: Debt and other fixed-income instruments
A246: Treasury bills of the Ministry of Finance of the Republic of Kazakhstan | B246: 727196 | C246: 799812
A247: Astana Finance JSC | B247: - | C247: 2173860
A248: HSBK EUROPE B.V. | B248: - | C248: 181603
B249: 727196 | C249: 3155275
A250: Equity investments – unquoted
A251: Corporate shares | B251: 71664 | C251: 205808
B252: 798860 | C252: 3361083
B254: inflow | C254: =C252-B252 -> 2562223
B256: 2009 | F256: 2008 | J256: Change
A257: TSC | B257: 14473 | C257: -5781 | D257: =SUM(B257:C257) -> 8692 | F257: 14473 | G257: -5781 | H257: =SUM(F257:G257) -> 8692 | J257: =H257-D257 -> 0
A258: TSB | B258: 743941 | D258: 743941 | F258: 3171525 | H258: 3171525 | J258: 2427584
A259: TC | B259: 10323 | D259: 10323 | F259: 9828 | H259: 9828 | J259: -495 | K259: acquisition of KASE shares
A260: MH | B260: 5524 | D260: 5524 | F260: 4814 | H260: 4814 | J260: -710 | K260: 540 - transfer to subsidiary (9% in FC Tsesna), -1250 - increase in Titan investment
A261: Info Tses | D261: 0 | F261: 135844 | H261: 135844 | J261: 135844 | K261: transfer to associates
... 197 more rows

Sheet 25 (hidden)
A1: Deposits and balances from banks and other financial institutions
B3: 2011 | C3: 2010 | D3: 2009
B4: ’000 KZT | C4: ’000 KZT | D4: ’000 KZT
A5: Loans and deposits from banks and other financial institutions | D5: 11966197
A6: Loro accounts | D6: 18283
A7: Derivative financial instruments | D7: 0
B8: =SUM(B5:B7) -> 0 | C8: =SUM(C5:C7) -> 0 | D8: =SUM(D5:D7) -> 11984480
B9: =B8-#REF! ->  | C9: =C8-#REF! ->  | D9: =D8-#REF! -> 

Sheet 31.a.1.2009 (hidden)
A1: Summarised information for interest gap disclosure 2009:
B3: TSC | C3: TSB | D3: TSCAP | E3: MEDH | F3: INFTS | G3: TSAST | H3: ZHALT | I3: BREAD | J3: AKMDIR | K3: ELEV | L3: ALMTS | M3: TSMAK | N3: ASTLOG | O3: FCTSC | P3: CONS | Q3: Contractual cash flows | R3: Carrying amount
A5: Financial instruments at fair value through profit or loss | B5: =ROUND(SUM(B6:B10),0) -> 0 | C5: 7093101 | D5: 17533 | E5: 0 | F5: 0 | G5: 0 | H5: 0 | I5: 0 | J5: 0 | K5: 0 | L5: 0 | M5: 0 | N5: 0 | O5: 0 | P5: 0 | Q5: =SUM(Q6:Q10) -> 7110634 | R5: 7110634 | S5: =Q5-R5 -> 0
A6: Less than 1 month | Q6: =ROUND(SUM(B6:P6),0) -> 0
A7: 1 to 3 months | C7: 1310610 | Q7: =ROUND(SUM(B7:P7),0) -> 1310610
A8: 3-12 months | C8: 880057 | Q8: =ROUND(SUM(B8:P8),0) -> 880057
A9: 1-5 years | C9: 3678825 | D9: =11593+5940 -> 17533 | Q9: =ROUND(SUM(B9:P9),0) -> 3696358
A10: More than 5 years - 2016 - more | C10: 1223609 | Q10: =ROUND(SUM(B10:P10),0) -> 1223609
A12: Available-for-sale financial assets | B12: =ROUND(SUM(B13:B17),0) -> 0 | C12: 727196 | D12: 0 | E12: 0 | F12: 0 | G12: 0 | H12: 0 | I12: 0 | J12: 0 | K12: 0 | L12: 0 | M12: 0 | N12: 0 | O12: 0 | P12: 0 | Q12: =SUM(Q13:Q17) -> 727196 | R12: 727196 | S12: =Q12-R12 -> 0
A13: Less than 1 month | Q13: =ROUND(SUM(B13:P13),0) -> 0
A14: 1 to 3 months | Q14: =ROUND(SUM(B14:P14),0) -> 0
A15: 3-12 months | C15: 314181 | Q15: =ROUND(SUM(B15:P15),0) -> 314181
A16: 1-5 years | C16: 413015 | Q16: =ROUND(SUM(B16:P16),0) -> 413015
A17: More than 5 years - 2016 - more | Q17: =ROUND(SUM(B17:P17),0) -> 0
A19: Held-to-maturity investments | B19: =ROUND(SUM(B20:B24),0) -> 0 | C19: 4319954 | D19: 0 | E19: 0 | F19: 0 | G19: 0 | H19: 0 | I19: 0 | J19: 0 | K19: 0 | L19: 0 | M19: 0 | N19: 0 | O19: 0 | P19: 0 | Q19: =SUM(Q20:Q24) -> 4319954 | R19: 4319954 | S19: =Q19-R19 -> 0
A20: Less than 1 month | Q20: =ROUND(SUM(B20:P20),0) -> 0
A21: 1 to 3 months | Q21: =ROUND(SUM(B21:P21),0) -> 0
A22: 3-12 months | Q22: =ROUND(SUM(B22:P22),0) -> 0
A23: 1-5 years | C23: 4287458 | Q23: =ROUND(SUM(B23:P23),0) -> 4287458
A24: More than 5 years - 2016 - more | C24: 32496 | Q24: =ROUND(SUM(B24:P24),0) -> 32496
A26: Loans and advances to banks | B26: =ROUND(SUM(B27:B31),0) -> 0 | C26: 27805060 | D26: 0 | E26: 0 | F26: 0 | G26: 0 | H26: 0 | I26: 0 | J26: 0 | K26: 0 | L26: 0 | M26: 0 | N26: 0 | O26: 0 | P26: 0 | Q26: =SUM(Q27:Q31) -> 27805060 | R26: =#REF! ->  | S26: =Q26-R26 -> 
A27: Less than 1 month | C27: 27595060 | Q27: =ROUND(SUM(B27:P27),0) -> 27595060
A28: 1 to 3 months | Q28: =ROUND(SUM(B28:P28),0) -> 0
A29: 3-12 months | C29: 210000 | Q29: =ROUND(SUM(B29:P29),0) -> 210000
A30: 1-5 years | Q30: =ROUND(SUM(B30:P30),0) -> 0
A31: More than 5 years - 2016 - more | Q31: =ROUND(SUM(B31:P31),0) -> 0
A33: Loans to customers | B33: =ROUND(SUM(B34:B38),0) -> 0 | C33: 103430834 | D33: 0 | E33: 0 | F33: 0 | G33: 0 | H33: 0 | I33: 0 | J33: 0 | K33: 0 | L33: 0 | M33: 0 | N33: 0 | O33: 0 | P33: 0 | Q33: =SUM(Q34:Q38) -> 103430834 | R33: =#REF! ->  | S33: =Q33-R33 -> 
A34: Less than 1 month | C34: 10094286 | Q34: =ROUND(SUM(B34:P34),0) -> 10094286
A35: 1 to 3 months | C35: 6191098 | Q35: =ROUND(SUM(B35:P35),0) -> 6191098
A36: 3-12 months | C36: =14933235-1428926 -> 13504309 | Q36: =ROUND(SUM(B36:P36),0) -> 13504309
A37: 1-5 years | C37: 34719745 | Q37: =ROUND(SUM(B37:P37),0) -> 34719745
A38: More than 5 years - 2016 - more | C38: 38921396 | Q38: =ROUND(SUM(B38:P38),0) -> 38921396
A40: Loans and borrowings | B40: =SUM(B41:B45) -> 0 | C40: 21640402 | D40: 0 | E40: 0 | F40: 0 | G40: 0 | H40: 0 | I40: 0 | J40: 0 | K40: 0 | L40: 0 | M40: 0 | N40: 0 | O40: 0 | P40: 18281207 | Q40: =SUM(Q41:Q45) -> 39921609 | R40: 39921609 | S40: =Q40-R40 -> 0
A41: Less than 1 month | C41: 123399 | P41: =1334887+177002 -> 1511889 | Q41: =ROUND(SUM(B41:P41),0) -> 1635288
A42: 1 to 3 months | C42: 9139753 | Q42: =ROUND(SUM(B42:P42),0) -> 9139753
A43: 3-12 months | C43: =1390008+13920 -> 1403928 | P43: 5691278 | Q43: =ROUND(SUM(B43:P43),0) -> 7095206
A44: 1-5 years | C44: =2746271+3668698-183487 -> 6231482 | P44: =4742170+2852537 -> 7594707 | Q44: =ROUND(SUM(B44:P44),0) -> 13826189
A45: More than 5 years - 2016 - more | C45: 4741840 | P45: 3483333 | Q45: =ROUND(SUM(B45:P45),0) -> 8225173
A47: Current accounts and deposits from customers | B47: =ROUND(SUM(B48:B52),0) -> 0 | C47: 92459462 | D47: 0 | E47: 0 | F47: 0 | G47: 0 | H47: 0 | I47: 0 | J47: 0 | K47: 0 | L47: 0 | M47: 0 | N47: 0 | O47: 0 | P47: 0 | Q47: =SUM(Q48:Q52) -> 92459462
A48: Less than 1 month | C48: 16411574 | Q48: =ROUND(SUM(B48:P48),0) -> 16411574
A49: 1 to 3 months | C49: 5955965 | Q49: =ROUND(SUM(B49:P49),0) -> 5955965
A50: 3-12 months | C50: =23860955-237874 -> 23623081 | Q50: =ROUND(SUM(B50:P50),0) -> 23623081
A51: 1-5 years | C51: 40853109 | Q51: =ROUND(SUM(B51:P51),0) -> 40853109
A52: More than 5 years - 2016 - more | C52: 5615733 | Q52: =ROUND(SUM(B52:P52),0) -> 5615733
A54: Deposits and balances from banks and other financial institutions | B54: =ROUND(SUM(B55:B59),0) -> 0 | C54: 14674168 | D54: 0 | E54: 0 | F54: 0 | G54: 0 | H54: 0 | I54: 0 | J54: 0 | K54: 0 | L54: 0 | M54: 0 | N54: 0 | O54: 0 | P54: 0 | Q54: =SUM(Q55:Q59) -> 14674168 | R54: =#REF! ->  | S54: =Q54-R54 -> 
A55: Less than 1 month | C55: 228640 | Q55: =ROUND(SUM(B55:P55),0) -> 228640
A56: 1 to 3 months | C56: 309379 | Q56: =ROUND(SUM(B56:P56),0) -> 309379
A57: 3-12 months | C57: 5327216 | Q57: =ROUND(SUM(B57:P57),0) -> 5327216
A58: 1-5 years | C58: 7702160 | Q58: =ROUND(SUM(B58:P58),0) -> 7702160
A59: More than 5 years - 2016 - more | C59: 1106773 | Q59: =ROUND(SUM(B59:P59),0) -> 1106773
B61: =SUM(B4:B60) -> 0 | C61: 544300354 | D61: 35066 | E61: 0 | F61: 0 | G61: 0 | H61: 0 | I61: 0 | J61: 0 | K61: 0 | L61: 0 | M61: 0 | N61: 0 | O61: 0 | P61: 36562414

Sheet 37 (hidden)
A1: Fair values of financial instruments
B4: 2008 | C4: 2008
B5: ’000 KZT | C5: ’000 KZT
B6: Fair Value | C6: Carrying Value
A7: ASSETS
A8: Loans to customers | B8: =B23 ->  | C8: =C23 -> 
A9: Held-to-maturity instruments | B9: =B26 -> 2217375 | C9: =C26 -> 4953377
A10: LIABILITIES
A11: Current accounts and deposits from customers | B11: =B32 ->  | C11: =C32 -> 
A12: Loans and borrowings | B12: =B44 ->  | C12: =C44 -> 
A14: Workings:
B16: 2008 | C16: 2008
B17: ’000 KZT | C17: ’000 KZT
B18: Fair Value | C18: Carrying Value
A19: ASSETS
A20: Loans to customers | B20: 84875979 | C20: 86466727
A21: Ratio of FV/CV | B21: =B20/C20 -> 0.9816027731
A22: Elim | B22: =C22*B21 ->  | C22: =SUM(#REF!) -> 
A23: Loans to customers | B23: =B20+B22 ->  | C23: =C20+C22 -> 
A24: Check | C24: =C23-#REF! -> 
A26: Held to maturity investments | B26: 2217375 | C26: 4953377
C27: =C26-#REF! -> 
A28: LIABILITIES
A29: Current accounts and deposits from customers | B29: 78304566 | C29: 80313123
A30: Ratio of FV/CV | B30: =B29/C29 -> 0.974990924
B31: =C31*B30 ->  | C31: =SUM(#REF!) -> 
A32: Adjusted values | B32: =B29+B31 ->  | C32: =C29+C31 -> 
C33: =C32+#REF! -> 
A34: Loans and borrowings
A35: Unsecured bond issues | B35: =22231290+#REF!+#REF! ->  | C35: =#REF!-#REF!-#REF! -> 
A36: Ratio of FV/CV | B36: =B35/C35 -> 
A37: Elim | B37: =C37*B36 ->  | C37: =#REF!+#REF! -> 
A38: Bank loans | B38: =#REF! ->  | C38: =#REF! -> 
A39: Amounts payable under repurchase agreements | B39: =C39 ->  | C39: =#REF! -> 
A40: Loan from other related party | B40: =C40 ->  | C40: =#REF! -> 
A41: Cumulative non-redeemable preference shares, subordinated bonds, subordinated loans | B41: =5533174+1250000 -> 6783174 | C41: =#REF!+#REF!+#REF! -> 
A42: Dividends on preference shares | B42: =C42 ->  | C42: =#REF! -> 
A43: Interest payable | B43: =C43 ->  | C43: =#REF! -> 
B44: =B35+B38+B40+B41+B42+B43+B37+B39 ->  | C44: =SUM(C35:C43) -> 
C45: =C44-#REF! -> 

Sheet NCI_TSB (hidden)
B2: 2005-01-01 | C2: 2005-04-30 | D2: 2005-10-25 | E2: 2005-11-14 | F2: 2005-11-15 | G2: 2005-11-16 | H2: 2005-12-02 | I2: 2005-12-06 | J2: 2005-12-08 | K2: Acquisition | M2: 2006-03-01 | N2: 2006-03-01 | P2: 2006-05-01 | Q2: 2006-05-01 | S2: 2006-07-01 | T2: 2006-07-01 | V2: 2006-09-01 | W2: 2006-09-01 | Y2: 2006-10-01 | Z2: 2006-10-01 | AB2: 2006-11-01 | AC2: 2006-11-01 | AE2: 2007-01-01 | AF2: 2007-01-01 | AH2: 2007-04-01 | AI2: 2007-04-01 | AK2: 2007-05-01 | AL2: 2007-05-01 | AN2: 2007-07-01 | AO2: 2007-07-01 | AQ2: 2007-08-01 | AR2: 2007-08-01 | AT2: 2008-01-01 | AU2: 2008-01-01 | AW2: 2009-01-01 | AX2: 2009-01-01 | AZ2: 2009-02-01 | BA2: 2009-02-01 | BC2: 2009-07-01 | BD2: 2009-07-01 | BF2: 2009-09-01 | BG2: 2009-09-01 | BI2: 2010-01-01 | BJ2: 2010-01-01
A4: Invest, KKZT | B4: 52000 | C4: 19100 | D4: 2355 | E4: 50780 | F4: 200677 | G4: 50693 | H4: 500025 | I4: 500025 | J4: 500025 | K4: 1875680 | N4: 182313 | Q4: 981988 | T4: 0 | W4: 400000 | Z4: 554789 | AC4: 26 | AF4: 1512652 | AI4: 2662710 | AL4: 156959 | AO4: 2708371 | AR4: 300050 | AU4: 0 | AX4: 1872307 | BA4: 127693 | BD4: -561294 | BG4: -713645 | BJ4: 0
A6: Total shares | K6: 2246610 | N6: 0 | Q6: 1017414 | T6: 35806 | W6: 400000 | Z6: 593168 | AC6: 12000 | AF6: 3195002 | AI6: 2664310 | AL6: 335690 | AO6: 2768417 | AR6: 231583 | AU6: 0 | AX6: =AX7 -> 1872307 | BA6: =BA7 -> 127693 | BD6: 0 | BG6: 0 | BJ6: 0
A7: TSC shares | B7: 52000 | C7: 19100 | D7: 2355 | E7: 59393 | F7: 287030 | G7: 69022 | H7: 500000 | I7: 500000 | J7: 500000 | K7: 1988900 | N7: 182313 | Q7: 981988 | T7: 0 | W7: 400000 | Z7: 554789 | AC7: 26 | AF7: 2548759 | AI7: 2662710 | AL7: 155550 | AO7: 2707017 | AR7: 300000 | AU7: 0 | AX7: 1872307 | BA7: 127693 | BD7: -609552 | BG7: -775000 | BJ7: 0
A8: NCI shares | K8: =K6-K7 -> 257710 | N8: =N6-N7 -> -182313 | Q8: =Q6-Q7 -> 35426 | T8: =T6-T7 -> 35806 | W8: =W6-W7 -> 0 | Z8: =Z6-Z7 -> 38379 | AC8: =AC6-AC7 -> 11974 | AF8: =AF6-AF7 -> 646243 | AI8: =AI6-AI7 -> 1600 | AL8: =AL6-AL7 -> 180140 | AO8: =AO6-AO7 -> 61400 | AR8: =AR6-AR7 -> -68417 | AU8: =AU6-AU7 -> 0 | AX8: =AX6-AX7 -> 0 | BA8: =BA6-BA7 -> 0 | BD8: =BD6-BD7 -> 609552 | BG8: =BG6-BG7 -> 775000 | BJ8: =BJ6-BJ7 -> 0
A9: Shareholders | K9: =IFERROR(K7/K6,0%) -> 0.8852893916 | N9: =IFERROR(N7/N6,0%) -> 0 | Q9: =IFERROR(Q7/Q6,0%) -> 0.9651803494 | T9: =IFERROR(T7/T6,0%) -> 0 | W9: =IFERROR(W7/W6,0%) -> 1 | Z9: =IFERROR(Z7/Z6,0%) -> 0.9352982629 | AC9: =IFERROR(AC7/AC6,0%) -> 0.002166666667 | AF9: =IFERROR(AF7/AF6,0%) -> 0.797733147 | AI9: =IFERROR(AI7/AI6,0%) -> 0.9993994693 | AL9: =IFERROR(AL7/AL6,0%) -> 0.4633739462 | AO9: =IFERROR(AO7/AO6,0%) -> 0.9778212603 | AR9: =IFERROR(AR7/AR6,0%) -> 1.295431875 | AU9: =IFERROR(AU7/AU6,0%) -> 0 | AX9: =IFERROR(AX7/AX6,0%) -> 1 | BA9: =IFERROR(BA7/BA6,0%) -> 1 | BD9: =IFERROR(BD7/BD6,0%) -> 0 | BG9: =IFERROR(BG7/BG6,0%) -> 0 | BJ9: =IFERROR(BJ7/BJ6,0%) -> 0
A10: NCI | K10: =IFERROR(K8/K6,0) -> 0.1147106084 | N10: =IFERROR(N8/N6,0) -> 0 | Q10: =IFERROR(Q8/Q6,0) -> 0.0348196506 | T10: =IFERROR(T8/T6,0) -> 1 | W10: =IFERROR(W8/W6,0) -> 0 | Z10: =IFERROR(Z8/Z6,0) -> 0.06470173711 | AC10: =IFERROR(AC8/AC6,0) -> 0.9978333333 | AF10: =IFERROR(AF8/AF6,0) -> 0.202266853 | AI10: =IFERROR(AI8/AI6,0) -> 0.000600530719 | AL10: =IFERROR(AL8/AL6,0) -> 0.5366260538 | AO10: =IFERROR(AO8/AO6,0) -> 0.02217873969 | AR10: =IFERROR(AR8/AR6,0) -> -0.2954318754 | AU10: =IFERROR(AU8/AU6,0) -> 0 | AX10: =IFERROR(AX8/AX6,0) -> 0 | BA10: =IFERROR(BA8/BA6,0) -> 0 | BD10: =IFERROR(BD8/BD6,0) -> 0 | BG10: =IFERROR(BG8/BG6,0) -> 0 | BJ10: =IFERROR(BJ8/BJ6,0) -> 0
A12: Cumulative
A13: Share capital | K13: =K6 -> 2246610 | M13: =K13 -> 2246610 | N13: =K13+N6 -> 2246610 | P13: =N13 -> 2246610 | Q13: =N13+Q6 -> 3264024 | S13: =Q13 -> 3264024 | T13: =Q13+T6 -> 3299830 | V13: =T13 -> 3299830 | W13: =T13+W6 -> 3699830 | Y13: =W13 -> 3699830 | Z13: =W13+Z6 -> 4292998 | AB13: =Z13 -> 4292998 | AC13: =Z13+AC6 -> 4304998 | AE13: =AC13 -> 4304998 | AF13: =AC13+AF6 -> 7500000 | AH13: =AF13 -> 7500000 | AI13: =AF13+AI6 -> 10164310 | AK13: =AI13 -> 10164310 | AL13: =AI13+AL6 -> 10500000 | AN13: =AL13 -> 10500000 | AO13: =AL13+AO6 -> 13268417 | AQ13: =AO13 -> 13268417 | AR13: =AO13+AR6 -> 13500000 | AT13: =AR13 -> 13500000 | AU13: =AR13+AU6 -> 13500000 | AW13: =AU13 -> 13500000 | AX13: =AU13+AX6 -> 15372307 | AZ13: =AX13 -> 15372307 | BA13: =AX13+BA6 -> 15500000 | BC13: =BA13 -> 15500000 | BD13: =BA13+BD6 -> 15500000 | BF13: =BD13 -> 15500000 | BG13: =BD13+BG6 -> 15500000 | BI13: =BG13 -> 15500000 | BJ13: =BG13+BJ6 -> 15500000
A14: Reserves | K14: 343429 | M14: =N14 -> 316993 | N14: 316993 | P14: =Q14 -> 332807 | Q14: 332807 | S14: =T14 -> 292459 | T14: 292459 | V14: =W14 -> 291896 | W14: 291896 | Y14: =Z14 -> 291565 | Z14: 291565 | AB14: =AC14 -> 272576 | AC14: 272576 | AE14: =AF14 -> 299408 | AF14: 299408 | AH14: =AI14 -> 299408 | AI14: 299408 | AK14: =AL14 -> 299408 | AL14: 299408 | AN14: =AO14 -> 299408 | AO14: 299408 | AQ14: =AR14 -> 299408 | AR14: 299408 | AT14: =AU14 -> 1738465 | AU14: 1738465 | AW14: =AX14 -> 4156974 | AX14: 4156974 | AZ14: =BA14 -> 4156974 | BA14: 4156974 | BC14: =BD14 -> 4156974 | BD14: 4156974 | BF14: =BG14 -> 4156974 | BG14: 4156974 | BI14: =BJ14 -> 2409455 | BJ14: 2409455
A15: Net income | K15: 0 | M15: =N15 -> 54495 | N15: 54495 | P15: =Q15 -> 136032 | Q15: 136032 | S15: =T15 -> 202409 | T15: 202409 | V15: =W15 -> 441111 | W15: 441111 | Y15: =Z15 -> 543457 | Z15: 543457 | AB15: =AC15 -> 351197 | AC15: 351197 | AE15: =AF15 -> 618155 | AF15: 618155 | AH15: =AI15 -> 265176 | AI15: =(ROUND($AU$15/5,0)) -> 265176 | AK15: =AL15 -> 530352 | AL15: =(ROUND($AU$15/5,0)+AI15) -> 530352 | AN15: =AO15 -> 795528 | AO15: =(ROUND($AU$15/5,0)+AL15) -> 795528 | AQ15: =AR15 -> 1060704 | AR15: =(ROUND($AU$15/5,0)+AO15) -> 1060704 | AT15: =AU15 -> 1325881 | AU15: 1325881 | AW15: =AX15 -> -4537049 | AX15: -4537049 | AZ15: =BA15 -> 126539 | BA15: =(ROUND($BJ$15/4,0)) -> 126539 | BC15: =BD15 -> 253078 | BD15: =(ROUND($BJ$15/4,0)+BA15) -> 253078 | BF15: =BG15 -> 379617 | BG15: =(ROUND($BJ$15/4,0)+BD15) -> 379617 | BI15: =BJ15 -> 506157 | BJ15: 506157
A16: Retained earnings | K16: 1368133 | M16: =N16 -> 1368213 | N16: 1368213 | P16: 1104423 | Q16: 87009 | S16: =T16 -> 87009 | T16: 87009 | V16: =W16 -> 87009 | W16: 87009 | Y16: =Z16 -> 87009 | Z16: 87009 | AB16: =AC16 -> 87009 | AC16: 87009 | AE16: =AF16 -> 87009 | AF16: 87009 | AH16: =AI16 -> 705164 | AI16: =SUM(AF15:AF16) -> 705164 | AK16: =AL16 -> 705164 | AL16: =AI16 -> 705164 | AN16: =AO16 -> 705164 | AO16: =AL16 -> 705164 | AQ16: =AR16 -> 705164 | AR16: =AO16 -> 705164 | AT16: =AU16 -> 711303 | AU16: 711303 | AW16: =AX16 -> 74202 | AX16: 74202 | AZ16: =BA16 -> -4462847 | BA16: =SUM(AX15:AX16) -> -4462847 | BC16: =BD16 -> -4462847 | BD16: =BA16 -> -4462847 | BF16: =BG16 -> -4462847 | BG16: =BD16 -> -4462847 | BI16: =BJ16 -> -2762937 | BJ16: -2762937
A17: Net assets | K17: =SUM(K13:K16) -> 3958172 | M17: =SUM(M13:M16) -> 3986311 | N17: =SUM(N13:N16) -> 3986311 | P17: =SUM(P13:P16) -> 3819872 | Q17: =SUM(Q13:Q16) -> 3819872 | S17: =SUM(S13:S16) -> 3845901 | T17: =SUM(T13:T16) -> 3881707 | V17: =SUM(V13:V16) -> 4119846 | W17: =SUM(W13:W16) -> 4519846 | Y17: =SUM(Y13:Y16) -> 4621861 | Z17: =SUM(Z13:Z16) -> 5215029 | AB17: =SUM(AB13:AB16) -> 5003780 | AC17: =SUM(AC13:AC16) -> 5015780 | AE17: =SUM(AE13:AE16) -> 5309570 | AF17: =SUM(AF13:AF16) -> 8504572 | AH17: =SUM(AH13:AH16) -> 8769748 | AI17: =SUM(AI13:AI16) -> 11434058 | AK17: =SUM(AK13:AK16) -> 11699234 | AL17: =SUM(AL13:AL16) -> 12034924 | AN17: =SUM(AN13:AN16) -> 12300100 | AO17: =SUM(AO13:AO16) -> 15068517 | AQ17: =SUM(AQ13:AQ16) -> 15333693 | AR17: =SUM(AR13:AR16) -> 15565276 | AT17: =SUM(AT13:AT16) -> 17275649 | AU17: =SUM(AU13:AU16) -> 17275649 | AW17: =SUM(AW13:AW16) -> 13194127 | AX17: =SUM(AX13:AX16) -> 15066434 | AZ17: =SUM(AZ13:AZ16) -> 15192973 | BA17: =SUM(BA13:BA16) -> 15320666 | BC17: =SUM(BC13:BC16) -> 15447205 | BD17: =SUM(BD13:BD16) -> 15447205 | BF17: =SUM(BF13:BF16) -> 15573744 | BG17: =SUM(BG13:BG16) -> 15573744 | BI17: =SUM(BI13:BI16) -> 15652675 | BJ17: =SUM(BJ13:BJ16) -> 15652675
A19: Net change
A20: Share capital | K20: =K13 -> 2246610 | M20: =M13-K13 -> 0 | N20: =N13-K13 -> 0 | Q20: =Q13-N13 -> 1017414 | T20: =T13-Q13 -> 35806 | W20: =W13-T13 -> 400000 | Z20: =Z13-W13 -> 593168 | AC20: =AC13-Z13 -> 12000 | AF20: =AF13-AC13 -> 3195002 | AI20: =AI13-AF13 -> 2664310 | AL20: =AL13-AI13 -> 335690 | AO20: =AO13-AL13 -> 2768417 | AR20: =AR13-AO13 -> 231583 | AU20: =AU13-AR13 -> 0 | AX20: =AX13-AU13 -> 1872307 | BA20: =BA13-AX13 -> 127693 | BD20: =BD13-BA13 -> 0 | BG20: =BG13-BD13 -> 0 | BJ20: =BJ13-BG13 -> 0
A21: Reserves | K21: 343429 | M21: =M14-K14 -> -26436 | N21: =N14-K14 -> -26436 | Q21: =Q14-N14 -> 15814 | T21: =T14-Q14 -> -40348 | W21: =W14-T14 -> -563 | Z21: =Z14-W14 -> -331 | AC21: =AC14-Z14 -> -18989 | AF21: =AF14-AC14 -> 26832 | AI21: =AI14-AF14 -> 0 | AL21: =AL14-AI14 -> 0 | AO21: =AO14-AL14 -> 0 | AR21: =AR14-AO14 -> 0 | AU21: =AU14-AR14 -> 1439057 | AX21: =AX14-AU14 -> 2418509 | BA21: =BA14-AX14 -> 0 | BD21: =BD14-BA14 -> 0 | BG21: =BG14-BD14 -> 0 | BJ21: =BJ14-BG14 -> -1747519
A22: Net income | K22: 0 | M22: =M15-K15 -> 54495 | N22: =N15-K15 -> 54495 | Q22: =Q15-N15 -> 81537 | T22: =T15-Q15 -> 66377 | W22: =W15-T15 -> 238702 | Z22: =Z15-W15 -> 102346 | AC22: =AC15-Z15 -> -192260 | AF22: =AF15-AC15 -> 266958 | AI22: =AI15 -> 265176 | AL22: =AL15-AI15 -> 265176 | AO22: =AO15-AL15 -> 265176 | AR22: =AR15-AO15 -> 265176 | AU22: =AU15-AR15 -> 265177 | AX22: =AX15 -> -4537049 | BA22: =BA15 -> 126539 | BD22: =BD15-BA15 -> 126539 | BG22: =BG15-BD15 -> 126539 | BJ22: =BJ15-BG15 -> 126540
A23: Retained earnings | K23: 1368133 | M23: =M16-K16 -> 80 | N23: =N16-K16 -> 80 | Q23: =Q16-N16 -> -1281204 | T23: =T16-Q16 -> 0 | W23: =W16-T16 -> 0 | Z23: =Z16-W16 -> 0 | AC23: =AC16-Z16 -> 0 | AF23: =AF16-AC16 -> 0 | AI23: =AI16-AF16-AF15 -> 0 | AL23: =AL16-AI16 -> 0 | AO23: =AO16-AL16 -> 0 | AR23: =AR16-AO16 -> 0 | AU23: =AU16-AR16 -> 6139 | AX23: =AX16-AU16-AU15 -> -1962982 | BA23: =BA16-AX16-AX15 -> 0 | BD23: =BD16-BA16 -> 0 | BG23: =BG16-BD16 -> 0 | BJ23: =BJ16-BG16 -> 1699910
A24: Net assets | K24: =SUM(K20:K23) -> 3958172 | M24: =SUM(M20:M23) -> 28139 | N24: =SUM(N20:N23) -> 28139 | Q24: =SUM(Q20:Q23) -> -166439 | T24: =SUM(T20:T23) -> 61835 | W24: =SUM(W20:W23) -> 638139 | Z24: =SUM(Z20:Z23) -> 695183 | AC24: =SUM(AC20:AC23) -> -199249 | AF24: =SUM(AF20:AF23) -> 3488792 | AI24: =SUM(AI20:AI23) -> 2929486 | AL24: =SUM(AL20:AL23) -> 600866 | AO24: =SUM(AO20:AO23) -> 3033593 | AR24: =SUM(AR20:AR23) -> 496759 | AU24: =SUM(AU20:AU23) -> 1710373 | AX24: =SUM(AX20:AX23) -> -2209215 | BA24: =SUM(BA20:BA23) -> 254232 | BD24: =SUM(BD20:BD23) -> 126539 | BG24: =SUM(BG20:BG23) -> 126539 | BJ24: =SUM(BJ20:BJ23) -> 78931
A26: Invest, KKZT | K26: =K4 -> 1875680 | N26: =K26+N4 -> 2057993 | Q26: =N26+Q4 -> 3039981 | T26: =Q26+T4 -> 3039981 | W26: =T26+W4 -> 3439981 | Z26: =W26+Z4 -> 3994770 | AC26: =Z26+AC4 -> 3994796 | AF26: =AC26+AF4 -> 5507448 | AI26: =AF26+AI4 -> 8170158 | AL26: =AI26+AL4 -> 8327117 | AO26: =AL26+AO4 -> 11035488 | AR26: =AO26+AR4 -> 11335538 | AU26: =AR26+AU4 -> 11335538 | AX26: =AU26+AX4 -> 13207845 | BA26: =AX26+BA4 -> 13335538 | BD26: =BA26+BD4 -> 12774244 | BG26: =BD26+BG4 -> 12060599 | BJ26: =BG26+BJ4 -> 12060599
A28: TSC shares | K28: =K7 -> 1988900 | N28: =K28+N7 -> 2171213 | Q28: =N28+Q7 -> 3153201 | T28: =Q28+T7 -> 3153201 | W28: =T28+W7 -> 3553201 | Z28: =W28+Z7 -> 4107990 | AC28: =Z28+AC7 -> 4108016 | AF28: =AC28+AF7 -> 6656775 | AI28: =AF28+AI7 -> 9319485 | AL28: =AI28+AL7 -> 9475035 | AO28: =AL28+AO7 -> 12182052 | AR28: =AO28+AR7 -> 12482052 | AU28: =AR28+AU7 -> 12482052 | AX28: =AU28+AX7 -> 14354359 | BA28: =AX28+BA7 -> 14482052 | BD28: =BA28+BD7 -> 13872500 | BG28: =BD28+BG7 -> 13097500 | BJ28: =BG28+BJ7 -> 13097500
A29: NCI shares | K29: =K8 -> 257710 | N29: =K29+N8 -> 75397 | Q29: =N29+Q8 -> 110823 | T29: =Q29+T8 -> 146629 | W29: =T29+W8 -> 146629 | Z29: =W29+Z8 -> 185008 | AC29: =Z29+AC8 -> 196982 | AF29: =AC29+AF8 -> 843225 | AI29: =AF29+AI8 -> 844825 | AL29: =AI29+AL8 -> 1024965 | AO29: =AL29+AO8 -> 1086365 | AR29: =AO29+AR8 -> 1017948 | AU29: =AR29+AU8 -> 1017948 | AX29: =AU29+AX8 -> 1017948 | BA29: =AX29+BA8 -> 1017948 | BD29: =BA29+BD8 -> 1627500 | BG29: =BD29+BG8 -> 2402500 | BJ29: =BG29+BJ8 -> 2402500
A30: Share-holding | K30: =IFERROR(K28/K13,0%) -> 0.8852893916 | N30: =IFERROR(N28/N13,0%) -> 0.966439658 | Q30: =IFERROR(Q28/Q13,0%) -> 0.9660471247 | T30: =IFERROR(T28/T13,0%) -> 0.9555646806 | W30: =IFERROR(W28/W13,0%) -> 0.9603687196 | Z30: =IFERROR(Z28/Z13,0%) -> 0.9569047086 | AC30: =IFERROR(AC28/AC13,0%) -> 0.9542434166 | AF30: =IFERROR(AF28/AF13,0%) -> 0.88757 | AI30: =IFERROR(AI28/AI13,0%) -> 0.9168831923 | AL30: =IFERROR(AL28/AL13,0%) -> 0.9023842857 | AO30: =IFERROR(AO28/AO13,0%) -> 0.9181239932 | AR30: =IFERROR(AR28/AR13,0%) -> 0.9245964444 | AU30: =IFERROR(AU28/AU13,0%) -> 0.9245964444 | AX30: =IFERROR(AX28/AX13,0%) -> 0.9337804013 | BA30: =IFERROR(BA28/BA13,0%) -> 0.9343259355 | BD30: =IFERROR(BD28/BD13,0%) -> 0.895 | BG30: =IFERROR(BG28/BG13,0%) -> 0.845 | BJ30: =IFERROR(BJ28/BJ13,0%) -> 0.845 | BS30: =BD30-BA30 -> -0.03932593548 | BT30: =BG30-BD30 -> -0.05
A31: NCI share | K31: =IFERROR(K29/K13,0) -> 0.1147106084 | N31: =IFERROR(N29/N13,0) -> 0.03356034203 | Q31: =IFERROR(Q29/Q13,0) -> 0.03395287535 | T31: =IFERROR(T29/T13,0) -> 0.0444353194 | W31: =IFERROR(W29/W13,0) -> 0.03963128036 | Z31: =IFERROR(Z29/Z13,0) -> 0.04309529145 | AC31: =IFERROR(AC29/AC13,0) -> 0.04575658339 | AF31: =IFERROR(AF29/AF13,0) -> 0.11243 | AI31: =IFERROR(AI29/AI13,0) -> 0.08311680773 | AL31: =IFERROR(AL29/AL13,0) -> 0.09761571429 | AO31: =IFERROR(AO29/AO13,0) -> 0.08187600676 | AR31: =IFERROR(AR29/AR13,0) -> 0.07540355556 | AU31: =IFERROR(AU29/AU13,0) -> 0.07540355556 | AX31: =IFERROR(AX29/AX13,0) -> 0.06621959866 | BA31: =IFERROR(BA29/BA13,0) -> 0.06567406452 | BD31: =IFERROR(BD29/BD13,0) -> 0.105 | BG31: =IFERROR(BG29/BG13,0) -> 0.155 | BJ31: =IFERROR(BJ29/BJ13,0) -> 0.155
N32: =K31-N31 -> 0.0811502664 | Q32: =N31-Q31 -> -0.0003925333201 | T32: =Q31-T31 -> -0.01048244405 | W32: =T31-W31 -> 0.004804039039 | Z32: =W31-Z31 -> -0.003464011093 | AC32: =Z31-AC31 -> -0.002661291945 | AF32: =AC31-AF31 -> -0.06667341661 | AI32: =AF31-AI31 -> 0.02931319227 | AL32: =AI31-AL31 -> -0.01449890655 | AO32: =AL31-AO31 -> 0.01573970752 | AR32: =AO31-AR31 -> 0.006472451205 | AU32: =AR31-AU31 -> 0 | AX32: =AU31-AX31 -> 0.009183956897 | BA32: =AX31-BA31 -> 0.0005455341427 | BD32: =BA31-BD31 -> -0.03932593548 | BG32: =BD31-BG31 -> -0.05 | BJ32: =BG31-BJ31 -> 0
A34: MI (I) | K34: =K17*K31 -> 454044.3184 | M34: =M17*K31 -> 457272.1602 | N34: =N17*N31 -> 133781.9606 | P34: =P17*N31 -> 128196.2108 | Q34: =Q17*Q31 -> 129695.6379 | S34: =S17*Q31 -> 130579.3972 | T34: =T17*T31 -> 172484.8903 | V34: =V17*T31 -> 183066.6729 | W34: =W17*W31 -> 179127.284 | Y34: =Y17*W31 -> 183170.2691 | Z34: =Z17*Z31 -> 224743.1947 | AB34: =AB17*Z31 -> 215639.3574 | AC34: =AC17*AC31 -> 229504.9559 | AE34: =AE17*AC31 -> 242947.7825 | AF34: =AF17*AF31 -> 956169.03 | AH34: =AH17*AF31 -> 985982.7676 | AI34: =AI17*AI31 -> 950362.4004 | AK34: =AK17*AI31 -> 972402.983 | AL34: =AL17*AL31 -> 1174797.703 | AN34: =AN17*AL31 -> 1200683.047 | AO34: =AO17*AO31 -> 1233750 | AQ34: =AQ17*AO31 -> 1255461.552 | AR34: =AR17*AR31 -> 1173677.154 | AT34: =AT17*AR31 -> 1302645.359 | AU34: =AU17*AU31 -> 1302645.359 | AW34: =AW17*AU31 -> 994884.0883 | AX34: =AX17*AX31 -> 997693.2127 | AZ34: =AZ17*AX31 -> 1006072.574 | BA34: =BA17*BA31 -> 1006170.407 | BC34: =BC17*BA31 -> 1014480.738 | BD34: =BD17*BD31 -> 1621956.525 | BF34: =BF17*BD31 -> 1635243.12 | BG34: =BG17*BG31 -> 2413930.32 | BI34: =BI17*BG31 -> 2426164.625 | BJ34: =BJ17*BJ31 -> 2426164.625
A35: MI (II)
BS36: 2007-01-01 | BT36: 2008-01-01 | BU36: 2009-01-01 | BV36: 2010-01-01
A37: Dr Net assets | K37: =K17 -> 3958172 | M37: =M17-K17 -> 28139 | N37: =N17-M17 -> 0 | P37: =P17-N17 -> -166439 | S37: =S17-Q17 -> 26029 | T37: =T17-S17 -> 35806 | V37: =V17-T17 -> 238139 | W37: =W17-V17 -> 400000 | Y37: =Y17-W17 -> 102015 | Z37: =Z17-Y17 -> 593168 | AB37: =AB17-Z17 -> -211249 | AC37: =AC17-AB17 -> 12000 | AE37: =AE17-AC17 -> 293790 | AF37: =AF17-AE17 -> 3195002 | AH37: =AH17-AF17 -> 265176 | AI37: =AI17-AH17 -> 2664310 | AK37: =AK17-AI17 -> 265176 | AL37: =AL17-AK17 -> 335690 | AN37: =AN17-AL17 -> 265176 | AO37: =AO17-AN17 -> 2768417 | AQ37: =AQ17-AO17 -> 265176 | AR37: =AR17-AQ17 -> 231583 | AT37: =AT17-AR17 -> 1710373 | AU37: =AU17-AT17 -> 0 | AW37: =AW17-AU17 -> -4081522 | AX37: =AX17-AW17 -> 1872307 | AZ37: =AZ17-AX17 -> 126539 | BA37: =BA17-AZ17 -> 127693 | BC37: =BC17-BA17 -> 126539 | BD37: =BD17-BC17 -> 0 | BF37: =BF17-BD17 -> 126539 | BG37: =BG17-BF17 -> 0 | BI37: =BI17-BG17 -> 78931 | BJ37: =BJ17-BI17 -> 0 | BR37: NA | BS37: =ROUND(SUM(K37:AF37),0) -> 8504572 | BT37: =ROUND(SUM(K37:AT37),0) -> 17275649 | BU37: =ROUND(SUM(K37:AX37),0) -> 15066434 | BV37: =ROUND(SUM(K37:BJ37),0) -> 15652675
A38: Cr Net income | K38: =K15*K30 -> 0 | M38: =((M15)*K30) * -1 -> -48243.84539 | P38: =((P15-N15)*N30) * -1 -> -78800.59039 | S38: =((S15-Q15)*Q30) * -1 -> -64123.30999 | V38: =((V15-T15)*T30) * -1 -> -228095.2004 | Y38: =((Y15-W15)*W30) * -1 -> -98289.89698 | AB38: =((AB15-Z15)*Z30) * -1 -> 183974.4993 | AE38: =((AE15-AC15)*AC30) * -1 -> -254742.914 | AH38: =((AH15)*AF30) * -1 -> -235362.2623 | AK38: =((AK15-AI15)*AI30) * -1 -> -243135.4174 | AN38: =((AN15-AL15)*AL30) * -1 -> -239290.6553 | AQ38: =((AQ15-AO15)*AO30) * -1 -> -243464.448 | AT38: =((AT15-AR15)*AR30) * -1 -> -245181.7113 | AW38: =((AW15)*AU30) * -1 -> 4194939.374 | AZ38: =((AZ15)*AX30) * -1 -> -118159.6382 | BC38: =((BC15-BA15)*BA30) * -1 -> -118228.6696 | BF38: =((BF15-BD15)*BD30) * -1 -> -113252.405 | BI38: =((BI15-BG15)*BG30) * -1 -> -106926.3 | BR38: NI | BS38: =ROUND(SUM(K38:AF38),0) -> -588321 | BT38: =ROUND(SUM(K38:AT38),0) -> -1794756 | BU38: =ROUND(SUM(K38:AX38),0) -> 2400184 | BV38: =ROUND(SUM(AZ38:BJ38),0) -> -456567
A39: Dr Reserves | K39: 0 | M39: =((M14-K14)*K30) * -1 -> 23403.51036 | P39: =((P14-N14)*N30) * -1 -> -15283.27675 | S39: =((S14-Q14)*Q30) * -1 -> 38978.06939 | V39: =((V14-T14)*T30) * -1 -> 537.9829152 | Y39: =((Y14-W14)*W30) * -1 -> 317.8820462 | AB39: =((AB14-Z14)*Z30) * -1 -> 18170.66351 | AE39: =((AE14-AC14)*AC30) * -1 -> -25604.25935 | AT39: =((AT14-AR14)*AR30) * -1 -> -1330546.986 | AW39: =((AW14-AU14)*AU30) * -1 -> -2236144.822 | AZ39: =((AZ14-AX14)*AX30) * -1 -> 0 | BC39: =((BC14-BA14)*BA30) * -1 -> 0 | BF39: =((BF14-BD14)*BD30) * -1 -> 0 | BI39: =(-(BI14-BG14+1699910)*BG30) -> 40229.605 | BR39: RE | BS39: 40521 | BT39: =ROUND(SUM(K39:AT39),0) -> -1290026 | BU39: -3526171 | BV39: =ROUND(SUM(K39:BJ39),0)+ROUND(SUM(K38:AX38),0) -> -1085758 | BX39: =ROUND(SUM(AY39:BJ39),0) -> 40230
A40: Dividends (Group) | K40: 0 | M40: =((M16-K16)*$N$30) * -1 -> -77.31517264 | P40: =((P16-N16)*$N$30) * -1 -> 254937.1174 | S40: =((S16-Q16)*$N$30) * -1 -> 0 | V40: =((V16-T16)*$N$30) * -1 -> 0 | Y40: =((Y16-W16)*$N$30) * -1 -> 0 | AB40: =((AB16-Z16)*$N$30) * -1 -> 0 | AE40: =((AE16-AC16)*$N$30) * -1 -> 0 | AH40: 0 | AK40: 0 | AN40: 0 | AQ40: 0 | AT40: 0 | AW40: 0 | AZ40: 0 | BC40: 0 | BF40: 0 | BI40: =((BI16-BG16-1699910)*$N$30) * -1 -> 0 | BR40: RE | BS40: 254860 | BT40: 254860 | BU40: 254860 | BV40: =ROUND(SUM(K40:BJ40),0) -> 254860
A41: Dividends (NCI) | K41: 0 | M41: =((M16-K16)+M40) * -1 -> -2.684827362 | P41: =((P16-N16)+P40) * -1 -> 8852.882623 | S41: =((S16-Q16)+S40) * -1 -> 0 | V41: =((V16-T16)+V40) * -1 -> 0 | Y41: =((Y16-W16)+Y40) * -1 -> 0 | AB41: =((AB16-Z16)+AB40) * -1 -> 0 | AE41: =((AE16-AC16)+AE40) * -1 -> 0 | AH41: 0 | AK41: 0 | AN41: 0 | AQ41: 0 | AT41: 0 | AW41: 0 | AZ41: 0 | BC41: 0 | BF41: 0 | BI41: 0 | BR41: RE | BS41: 8850 | BT41: 8850 | BU41: 8850 | BV41: 8850
A42: Dr Deemed disposal | K42: 0 | N42: =N54 -> -141177.1996 | Q42: =Q54+271 -> 983758.427 | T42: =T54 -> 6099.493096 | W42: =W54 -> -3939.388877 | Z42: =Z54 -> 3193.925612 | AC42: =AC54 -> 1891.598412 | AF42: =AF54 -> -969128.7525 | AI42: =AI54 -> -37220.36726 | AL42: =AL54 -> 23663.71964 | AO42: =AO54 -> -26979.04752 | AR42: =AR54 -> -13317.39814 | AU42: =AU54 -> 0 | AX42: =AX54 -> 2809.124448 | BA42: =BA54 -> 97.83281994 | BD42: =BD54 -> 46181.78724 | BG42: =BG54 -> 65042.2 | BJ42: =BJ54 -> 0 | BR42: APIC | BS42: -119302 | BT42: -173155 | BU42: -170346 | BV42: -59024
A43: NCI | K43: =(K17*K31) * -1 -> -454044.3184 | M43: =((SUM(M14:M15)-SUM(K14:K15))*K31) * -1 -> -3218.664962 | N43: =(N54+N8) * -1 -> 323490.1996 | P43: =((SUM(P14:P15)-SUM(N14:N15))*N31) * -1 -> -3267.132857 | Q43: =(Q42+Q46) * -1 -> -1770.427038 | S43: =((SUM(S14:S15)-SUM(Q14:Q15))*Q31) * -1 -> -883.7593924 | T43: =((T13-S13)-T4+T54) * -1 -> -41905.4931 | V43: =((SUM(V14:V15)-SUM(T14:T15))*T31) * -1 -> -10581.78253 | W43: =((W13-V13)-W4+W54) * -1 -> 3939.388877 | Y43: =((SUM(Y14:Y15)-SUM(W14:W15))*W31) * -1 -> -4042.985066 | Z43: =((Z13-Y13)-Z4+Z54) * -1 -> -41572.92561 | AB43: =((SUM(AB14:AB15)-SUM(Z14:Z15))*Z31) * -1 -> 9103.837223 | AC43: =((AC13-AB13)-AC4+AC54) * -1 -> -13865.59841 | AE43: =((SUM(AE14:AE15)-SUM(AC14:AC15))*AC31) * -1 -> -13442.82664 | AF43: =((AF13-AE13)-AF4+AF54) * -1 -> -713221.2475 | AH43: =((SUM(AH14:AH15)-SUM(AF14))*AF31) * -1 -> -29813.73768 | AI43: =(AI54+AI8) * -1 -> 35620.36726 | AK43: =((SUM(AK14:AK15)-SUM(AI14:AI15))*AI31) * -1 -> -22040.58261 | AL43: =((AL13-AK13)-AL4+AL54) * -1 -> -202394.7196 | AN43: =((SUM(AN14:AN15)-SUM(AL14:AL15))*AL31) * -1 -> -25885.34465 | AO43: =((AO13-AN13)-AO4+AO54) * -1 -> -33066.95248 | AQ43: =((SUM(AQ14:AQ15)-SUM(AO14:AO15))*AO31) * -1 -> -21711.55197 | AR43: =((AR13-AQ13)-AR4+AR54) * -1 -> 81784.39814 | AT43: =((AT17-AR17)*AR31) * -1 -> -128968.2055 | AU43: =(AU54+AU8) * -1 -> 0 | AW43: =((AW17-AU17)*AU31) * -1 -> 307761.2709 | AX43: =(AX54+AX8) * -1 -> -2809.124448 | AZ43: =((SUM(AZ14:AZ15)-SUM(AX14))*AX31) * -1 -> -8379.361795 | BA43: =(BA54+BA8) * -1 -> -97.83281994 | BC43: =((SUM(BC14:BC15)-SUM(BA14:BA15))*BA31) * -1 -> -8310.33045 | BD43: =((BD13-BC13)-BD4+BD54) * -1 -> -607475.7872 | BF43: =((SUM(BF14:BF15)-SUM(BD14:BD15))*BD31) * -1 -> -13286.595 | BG43: =((BG13-BF13)-BG4+BG54) * -1 -> -778687.2 | BI43: =((SUM(BI14:BI15)-SUM(BG14:BG15)+1699910)*BG31) * -1 -> -12234.305 | BJ43: =(BJ54+BJ8) * -1 -> 0 | BR43: NCI | BS43: -965284 | BT43: -1311760 | BU43: -1006808 | BV43: -2435279
A44: Retained earnings | K44: =(K17*K30+K46) * -1 -> -1628447.682 | AT44: =((AT16-AR16)*AR30) * -1 -> -5676.097572 | AW44: =((AW16-AU16-AU15)*AU30) * -1 -> 1814966.178 | AZ44: 0 | BB44: 0 | BC44: 0 | BF44: 0 | BI44: 0 | BR44: APIC | BS44: -1628448 | BT44: -1634124 | BU44: 180842 | BV44: 180842
A45: Cr Other equity | K45: 0 | BR45: APIC | BS45: 0 | BT45: 0 | BU45: 0 | BV45: 0
A46: Investments (paid in cash) | K46: =(K4) * -1 -> -1875680 | N46: =(N4) * -1 -> -182313 | Q46: =(Q4) * -1 -> -981988 | T46: =(T4) * -1 -> 0 | W46: =(W4) * -1 -> -400000 | Z46: =(Z4) * -1 -> -554789 | AC46: =(AC4) * -1 -> -26 | AF46: =(AF4) * -1 -> -1512652 | AI46: =(AI4) * -1 -> -2662710 | AL46: =(AL4) * -1 -> -156959 | AO46: =(AO4) * -1 -> -2708371 | AR46: =(AR4) * -1 -> -300050 | AU46: =(AU4) * -1 -> 0 | AX46: =(AX4) * -1 -> -1872307 | BA46: =(BA4) * -1 -> -127693 | BD46: =(BD4) * -1 -> 561294 | BG46: =(BG4) * -1 -> 713645 | BJ46: =(BJ7) * -1 -> 0 | BR46: INV | BS46: -5507448 | BT46: -11335538 | BU46: -13207845 | BV46: -12060599
K47: =SUM(K37:K46) -> 0 | M47: =SUM(M37:M46) -> -4.092726158e-12 | N47: =SUM(N37:N46) -> 0 | P47: =SUM(P37:P46) -> -1.546140993e-11 | Q47: =SUM(Q37:Q46) -> 0 | S47: =SUM(S37:S46) -> 1.364242053e-12 | T47: =SUM(T37:T46) -> 0 | V47: =SUM(V37:V46) -> 0 | W47: =SUM(W37:W46) -> 0 | Y47: =SUM(Y37:Y46) -> 0 | Z47: =SUM(Z37:Z46) -> 0 | AB47: =SUM(AB37:AB46) -> 1.455191523e-11 | AC47: =SUM(AC37:AC46) -> 0 | AE47: =SUM(AE37:AE46) -> 0 | AF47: =SUM(AF37:AF46) -> 0 | AH47: =SUM(AH37:AH46) -> 0 | AI47: =SUM(AI37:AI46) -> 0 | AK47: =SUM(AK37:AK46) -> 0 | AL47: =SUM(AL37:AL46) -> 0 | AN47: =SUM(AN37:AN46) -> 0 | AO47: =SUM(AO37:AO46) -> 0 | AQ47: =SUM(AQ37:AQ46) -> 0 | AR47: =SUM(AR37:AR46) -> 0 | AT47: =SUM(AT37:AT46) -> 4.274625098e-11 | AU47: =SUM(AU37:AU46) -> 0 | AW47: =SUM(AW37:AW46) -> 0 | AX47: =SUM(AX37:AX46) -> 0 | AZ47: =SUM(AZ37:AZ46) -> 5.456968211e-12 | BA47: =SUM(BA37:BA46) -> 0 | BC47: =SUM(BC37:BC46) -> 1.818989404e-12 | BD47: =SUM(BD37:BD46) -> 0 | BF47: =SUM(BF37:BF46) -> 1.818989404e-12 | BG47: =SUM(BG37:BG46) -> 0 | BI47: =SUM(BI37:BI46) -> -7.275957614e-12 | BJ47: =SUM(BJ37:BJ46) -> 0 | BS47: =SUM(BS37:BS46) -> 0 | BT47: =SUM(BT37:BT46) -> 0 | BU47: =SUM(BU37:BU46) -> 0 | BV47: =SUM(BV37:BV46) -> 0 | BY47: Standalone | BZ47: AJE so far
BY48: balance | BZ48: 2006 | CA48: 2007 | CB48: 2008 | CC48: Total | CE48: AJE needed
BR49: NA | BS49: =BS37 -> 8504572 | BT49: 17275649 | BU49: 15066434 | BV49: 15652675 | BY49: =#REF!+#REF! ->  | CC49: =SUM(BY49:CB49) ->  | CE49: =BV49-CC49 ->  | CF49: NA
A50: GNA before | N50: =M17*K30 -> 3529038.84 | Q50: =P17*N30 -> 3691675.789 | T50: =S17*Q30 -> 3715321.603 | W50: =V17*T30 -> 3936779.327 | Z50: =Y17*W30 -> 4438690.731 | AC50: =AB17*Z30 -> 4788140.643 | AF50: =AE17*AC30 -> 5066622.218 | AI50: =AH17*AF30 -> 7783765.232 | AL50: =AK17*AI30 -> 10726831.02 | AO50: =AN17*AL30 -> 11099416.95 | AR50: =AQ17*AO30 -> 14078231.45 | AU50: =AT17*AR30 -> 15973003.64 | AX50: =AW17*AU30 -> 12199242.91 | BA50: =AZ17*AX30 -> 14186900.43 | BD50: =BC17*BA30 -> 14432724.26 | BG50: =BF17*BD30 -> 13938500.88 | BJ50: =BI17*BG30 -> 13226510.38 | BR50: NI | BS50: -588321 | BT50: -1794756 | BU50: 2400184 | BV50: -456567 | BY50: =#REF! ->  | CE50: =BV50-CC50 ->  | CF50: NI | CG50: -506157 | CH50: =CG50-CE50 -> 
A51: GNA after | N51: =(N17*N30) * -1 -> -3852529.039 | Q51: =(Q17*Q30) * -1 -> -3690176.362 | T51: =(T17*T30) * -1 -> -3709222.11 | W51: =(W17*W30) * -1 -> -4340718.716 | Z51: =(Z17*Z30) * -1 -> -4990285.805 | AC51: =(AC17*AC30) * -1 -> -4786275.044 | AF51: =(AF17*AF30) * -1 -> -7548402.97 | AI51: =(AI17*AI30) * -1 -> -10483695.6 | AL51: =(AL17*AL30) * -1 -> -10860126.3 | AO51: =(AO17*AO30) * -1 -> -13834767 | AR51: =(AR17*AR30) * -1 -> -14391598.85 | AU51: =(AU17*AU30) * -1 -> -15973003.64 | AX51: =(AX17*AX30) * -1 -> -14068740.79 | BA51: =(BA17*BA30) * -1 -> -14314495.59 | BD51: =(BD17*BD30) * -1 -> -13825248.47 | BG51: =(BG17*BG30) * -1 -> -13159813.68 | BJ51: =(BJ17*BJ30) * -1 -> -13226510.38 | BR51: RES | BS51: =BS39 -> 40521 | BT51: =BT39 -> -1290026 | BU51: =BU39 -> -3526171 | BV51: =#REF!+#REF!+#REF!+NCI_TSB!BX39 ->  | BY51: =SUM(#REF!) ->  | CF51: RES | CG51: 355252 | CH51: =CG51-CE51 -> 
N52: =SUM(N50:N51) -> -323490.1996 | Q52: =SUM(Q50:Q51) -> 1499.427038 | T52: =SUM(T50:T51) -> 6099.493096 | W52: =SUM(W50:W51) -> -403939.3889 | Z52: =SUM(Z50:Z51) -> -551595.0744 | AC52: =SUM(AC50:AC51) -> 1865.598412 | AF52: =SUM(AF50:AF51) -> -2481780.753 | AI52: =SUM(AI50:AI51) -> -2699930.367 | AL52: =SUM(AL50:AL51) -> -133295.2804 | AO52: =SUM(AO50:AO51) -> -2735350.048 | AR52: =SUM(AR50:AR51) -> -313367.3981 | AU52: =SUM(AU50:AU51) -> 0 | AX52: =SUM(AX50:AX51) -> -1869497.876 | BA52: =SUM(BA50:BA51) -> -127595.1672 | BD52: =SUM(BD50:BD51) -> 607475.7872 | BG52: =SUM(BG50:BG51) -> 778687.2 | BJ52: =SUM(BJ50:BJ51) -> 0 | BR52: RE | BS52: =SUM(BS40:BS41) -> 263710 | BT52: =SUM(BT40:BT41) -> 263710 | BU52: =SUM(BU40:BU41) -> 263710 | BV52: =SUM(BV40:BV41)+1329306 -> 1593016 | BY52: =#REF! ->  | BZ52: -904795 | CA52: 145438 | CB52: -347699 | CF52: RE
N53: =(N46) * -1 -> 182313 | Q53: =(Q46) * -1 -> 981988 | T53: =(T46) * -1 -> 0 | W53: =(W46) * -1 -> 400000 | Z53: =(Z46) * -1 -> 554789 | AC53: =(AC46) * -1 -> 26 | AF53: =(AF46) * -1 -> 1512652 | AI53: =(AI46) * -1 -> 2662710 | AL53: =(AL46) * -1 -> 156959 | AO53: =(AO46) * -1 -> 2708371 | AR53: =(AR46) * -1 -> 300050 | AU53: =(AU46) * -1 -> 0 | AX53: =(AX46) * -1 -> 1872307 | BA53: =(BA46) * -1 -> 127693 | BD53: =(BD46) * -1 -> -561294 | BG53: =(BG46) * -1 -> -713645 | BJ53: =(BJ46) * -1 -> 0 | BR53: APIC | BS53: =BS42+BS44+BS45 -> -1747750 | BT53: =BT42+BT44+BT45 -> -1807279 | BU53: =BU42+BU44+BU45 -> 10496 | BV53: =BV42+BV44+BV45 -> 121818 | BY53: =#REF! ->  | BZ53: -88708 | CA53: -42211 | CF53: APIC | CG53: =SUM(#REF!) ->  | CH53: =CG53-CE53 -> 
N54: =SUM(N52:N53) -> -141177.1996 | Q54: =SUM(Q52:Q53) -> 983487.427 | T54: =SUM(T52:T53) -> 6099.493096 | W54: =SUM(W52:W53) -> -3939.388877 | Z54: =SUM(Z52:Z53) -> 3193.925612 | AC54: =SUM(AC52:AC53) -> 1891.598412 | AF54: =SUM(AF52:AF53) -> -969128.7525 | AI54: =SUM(AI52:AI53) -> -37220.36726 | AL54: =SUM(AL52:AL53) -> 23663.71964 | AO54: =SUM(AO52:AO53) -> -26979.04752 | AR54: =SUM(AR52:AR53) -> -13317.39814 | AU54: =SUM(AU52:AU53) -> 0 | AX54: =SUM(AX52:AX53) -> 2809.124448 | BA54: =SUM(BA52:BA53) -> 97.83281994 | BD54: =SUM(BD52:BD53) -> 46181.78724 | BG54: =SUM(BG52:BG53) -> 65042.2 | BJ54: =SUM(BJ52:BJ53) -> 0 | BR54: NCI | BS54: =BS43 -> -965284 | BT54: =BT43 -> -1311760 | BU54: =BU43 -> -1006808 | BV54: =BV43 -> -2435279 | BY54: 0 | BZ54: -943806 | CA54: -275137 | CB54: 347699 | CC54: -871244 | CE54: -1564035 | CF54: NCI | CG54: =SUM(#REF!) ->  | CH54: =CG54-CE54 -> 
BR55: INV | BS55: =BS46 -> -5507448 | BT55: =BT46 -> -11335538 | BU55: =BU46 -> -13207845 | BV55: =BV46 -> -12060599 | BY55: -15500000 | BZ55: 1937309 | CA55: 171910 | CB55: 0 | CC55: -13390781 | CE55: 1330182 | CF55: INV | CG55: -12060599 | CH55: =CG55-CE55 -> -13390781
BY56: =SUM(BY49:BY55) ->  | BZ56: =SUM(BZ49:BZ55) -> 0 | CA56: =SUM(CA49:CA55) -> 0 | CB56: =SUM(CB49:CB55) -> 0 | CC56: =SUM(CC49:CC55) -> 
CE57: -14169818
CE58: -12060599
BV59: =SUM(BV49:BV55) ->  | CE59: =CE57-CE58 -> -2109219
CE61: 3439401
CE62: =SUM(CE49:CE55) -> 

Sheet TSC_IP_ext (hidden)
A1: № п/п | B1: Наименование | C1: Наименование в 2009 г. | F1: Сравнительный подход, тенге | G1: Затратный подход, тенге | H1: Доходный подход, тенге | I1: Fair value 31/12/2010 | J1: Fair value 31/12/2009 | L1: Area | M1: Per FAS
B2: Бар "ПАБ" пр. Республики д. 5, ВП-4 | C2: Бар "ПАБ" пр.Республики 5-46 (45 м2) №: 00082 | F2: 906.4231 | G2: 12105.7045 | I2: 9305.884
B3: 1.Земельный участок площадью 39кв.м.пр. Республики,д. 5, ВП - 4. | F3: 251.94 | G3: 679.514 | I3: 679.514
A4: 1 | B4: Бар "ПАБ" пр. Республики д. 5, ВП-4 | C4: Бар "ПАБ" пр.Республики 5-46 (45 м2) №: 00082 | D4: =C4 -> Бар "ПАБ" пр.Республики 5-46 (45 м2) №: 00082 | F4: =SUM(F2:F3) -> 1158.3631 | G4: =SUM(G2:G3) -> 12785.2185 | H4: =SUM(H2:H3) -> 0 | I4: =SUM(I2:I3) -> 9985.398 | J4: 9567.5481
B6: Гостиница "Тенгри" ул. Вавилова №1 | C6: Гостиница "Тенгри" Астана, ул.Вавилова 1а (8719,5 м2) №: 05205 | F6: 247021.8598 | G6: 1248251.829 | H6: 1780322.777 | I6: 1648999.999
B7: 2.Земельный участок площадью 2792кв.м. , ул. Вавилова №1а. | F7: 15188.48 | G7: 54311.004 | I7: 54311.004
A8: 2 | B8: Гостиница "Тенгри" ул. Вавилова №1 | C8: Гостиница "Тенгри" Астана, ул.Вавилова 1а (8719,5 м2) №: 05205 | D8: =C8 -> Гостиница "Тенгри" Астана, ул.Вавилова 1а (8719,5 м2) №: 05205 | F8: =SUM(F6:F7) -> 262210.3398 | G8: =SUM(G6:G7) -> 1302562.833 | H8: =SUM(H6:H7) -> 1780322.777 | I8: =SUM(I6:I7) -> 1703311.003 | J8: 1723208.353 | K8: x
B10: Магазин "Шапагат" пр. Республики, д. 21, ВП-7 | C10: Магазин "Шапагат" пр Республики 21 (415,6 м2) №: 00074 | F10: 7090.4835 | G10: 83489.2656 | H10: 215740.668 | I10: 114497.501
B11: 3.Земельный участок площадью 104кв.м. пр. Республики, д 21,ВП 7. | F11: 671.84 | G11: 1811.9882 | I11: 1811.9882
A12: 3 | B12: Магазин "Шапагат" пр. Республики, д. 21, ВП-7 | C12: Магазин "Шапагат" пр Республики 21 (415,6 м2) №: 00074 | D12: =C12 -> Магазин "Шапагат" пр Республики 21 (415,6 м2) №: 00074 | E12: PPE | F12: =SUM(F10:F11) -> 7762.3235 | G12: =SUM(G10:G11) -> 85301.2538 | H12: =SUM(H10:H11) -> 215740.668 | I12: =SUM(I10:I11) -> 116309.4892 | J12: 113780.8201 | K12: x
B14: Магазин пр. Республики, д. 21, ВП-8 | C14: Магазин "Глобус" пр Республики 21 (255,3 м2) №: 00075 | F14: 7259.3535 | G14: 51286.8371 | H14: 79157.471 | I14: 56324.897
B15: 4.Земельный участок площадью 93кв.м. пр. Республики, д 21,ВП 8. | F15: 600.78 | G15: 1620.3682 | I15: 1620.3682
A16: 4 | B16: Магазин пр. Республики, д. 21, ВП-8 | C16: Магазин "Глобус" пр Республики 21 (255,3 м2) №: 00075 | D16: =C16 -> Магазин "Глобус" пр Республики 21 (255,3 м2) №: 00075 | F16: =SUM(F14:F15) -> 7860.1335 | G16: =SUM(G14:G15) -> 52907.2053 | H16: =SUM(H14:H15) -> 79157.471 | I16: =SUM(I14:I15) -> 57945.2652 | J16: 70307.7757
B18: Офис ул. Бейбитшилик д. 45, кв. 35, 39 | C18: Офис ул.Бейбитшилик, 45 (181,3 м2) №: 00080 | F18: 1234.2258 | G18: 25063.4366 | H18: 90204.442 | I18: 28753.602
B19: 5.Земельный участок площадью 52кв.м., ул. Бейбитшилик, д.45,кв.35 | F19: 309.4 | G19: 684.3782 | I19: 684.3782
A20: 5 | B20: Офис ул. Бейбитшилик д. 45, кв. 35, 39 | C20: Офис ул.Бейбитшилик, 45 (181,3 м2) №: 00080 | D20: Офис ул.Бейбитшилик, 45 (181,3 м2) №: 00080 | E20: PPE | F20: =SUM(F18:F19) -> 1543.6258 | G20: =SUM(G18:G19) -> 25747.8148 | H20: =SUM(H18:H19) -> 90204.442 | I20: =SUM(I18:I19) -> 29437.9802 | J20: 28760.919
B22: Магазин "Колос" ул. Бейбитшилик д. 34 | C22: Магазин "Колос" ул Бейбитшилик 34 (2362 м2) №: 00018 | F22: 18822.6139 | G22: 455450.8974 | H22: 53159.851 | I22: 413507.93
B23: 6.Земельный участок площадью 1663кв.м., ул. Бейбитшилик, д.34 | F23: 10460.27 | G23: 21884.9202 | I23: 21884.9202
B24: Магазин "Колос" ул. Бейбитшилик д. 34 | C24: Магазин "Колос" ул Бейбитшилик 34 (2362 м2) №: 00018 | D24: =C24 -> Магазин "Колос" ул Бейбитшилик 34 (2362 м2) №: 00018 | F24: =SUM(F22:F23) -> 29282.8839 | G24: =SUM(G22:G23) -> 477335.8176 | H24: =SUM(H22:H23) -> 53159.851 | I24: =SUM(I22:I23) -> 435392.8502 | J24: 581782.3105 | K24: x
B26: Административное здание ул. Бейбитшилик д. 43 | C26: Офис ул.Бейбитшилик, 43 (3302,4 м2) №: 00084 | F26: 131425.633 | G26: 301286.3417 | H26: 1558439.55 | I26: 581166.701
B27: Проходная ул. Бейбитшилик д. 43 | C27: Офис ул.Бейбитшилик, 43 (3302,4 м2) №: 00084 | F27: 820.8 | G27: 1204.6457 | I27: 974.338
B28: Обменный пункт ул. Бейбитшилик д. 43 | C28: Офис ул.Бейбитшилик, 43 (3302,4 м2) №: 00084 | F28: 6189.3094 | G28: 15829.9363 | I28: 9081.498
B29: Гаражи ул. Бейбитшилик д. 43 | C29: Офис ул.Бейбитшилик, 43 (3302,4 м2) №: 00084 | F29: 3503.1089 | G29: 13697.2673 | I29: 6561.356
B30: 7.Земельный участок площадью 2097кв.м. ул. Бейбитшилик, д.43 | F30: 12477.15 | G30: 27596.228 | I30: 27596.228
A31: 7 | B31: Офис ул.Бейбитшилик, 43 (3302,4 м2) №: 00084 | C31: Офис ул.Бейбитшилик, 43 (3302,4 м2) №: 00084 | D31: =C31 -> Офис ул.Бейбитшилик, 43 (3302,4 м2) №: 00084 | E31: PPE | F31: =SUM(F26:F30) -> 154416.0013 | G31: =SUM(G26:G30) -> 359614.419 | H31: =SUM(H26:H30) -> 1558439.55 | I31: =SUM(I26:I30) -> 625380.121 | J31: 833439.047 | K31: x | L31: 3376 | M31: 500524 | N31: =M31-I31 -> -124856.121
B33: Торговый центр "Ажар" ул. Кошкарбаева д. 97 | C33: Торговый центр "Ажар" Астана, ул.Кошкарбаева 97 (5082,2 №: 01865 | F33: 177866.6389 | G33: 888391.9788 | H33: 274177.098 | I33: 791443.524
B34: Склад-магазин, хол. пристройка ул. Кошкарбаева д. 97 | C34: Торговый центр "Ажар" Астана, ул.Кошкарбаева 97 (5082,2 №: 01865 | F34: 3275.5312 | G34: 22374.9898 | I34: 7477.412
B35: 8.Земельный участок площадью 4940кв.м., ул. Кошкарбаева, д.97 | F35: 30232.8 | G35: 59271.8984 | I35: 59271.8984
A36: 8 | B36: Торговый центр "Ажар" ул. Кошкарбаева д. 97 | C36: Торговый центр "Ажар" Астана, ул.Кошкарбаева 97 (5082,2 №: 01865 | D36: =C36 -> Торговый центр "Ажар" Астана, ул.Кошкарбаева 97 (5082,2 №: 01865 | F36: =SUM(F33:F35) -> 211374.9701 | G36: =SUM(G33:G35) -> 970038.867 | H36: =SUM(H33:H35) -> 274177.098 | I36: =SUM(I33:I35) -> 858192.8344 | J36: 857567.6418 | K36: x
B38: Магазин пр. Абая д. 219/2 | C38: Магазин "Ажар" ул Абая 219/2 (478,8 м2) №: 00078 | F38: 8607.5387 | G38: 92136.269 | H38: 27546.857 | I38: 55020.521
B39: 9.Земельный участок площадью 184кв.м., пр.Абая д.219/2, ВП1. | F39: 813.28 | G39: 2207.7572 | I39: 2207.7572
A40: 9 | B40: Магазин пр. Абая д. 219/2 | C40: Магазин "Ажар" ул Абая 219/2 (478,8 м2) №: 00078 | D40: =C40 -> Магазин "Ажар" ул Абая 219/2 (478,8 м2) №: 00078 | F40: =SUM(F38:F39) -> 9420.8187 | G40: =SUM(G38:G39) -> 94344.0262 | H40: =SUM(H38:H39) -> 27546.857 | I40: =SUM(I38:I39) -> 57228.2782 | J40: 53618.6471
B42: Офис ул. Бараева д. 9, ВП-1 | C42: Офис Бараева,9 (277 м2) №: 00077 | F42: 6325.9405 | G42: 57287.4758 | H42: 124087.687 | I42: 56942.925
B43: 10.Земельный участок площадью 610кв.м.,ул. Бараева,д.9, ВП-1 | F43: 3733.2 | G43: 10627.8348 | I43: 10627.8348
A44: 10 | B44: Офис ул. Бараева д. 9, ВП-1 | C44: Офис Бараева,9 (277 м2) №: 00077 | D44: =C44 -> Офис Бараева,9 (277 м2) №: 00077 | E44: PPE | F44: =SUM(F42:F43) -> 10059.1405 | G44: =SUM(G42:G43) -> 67915.3106 | H44: =SUM(H42:H43) -> 124087.687 | I44: =SUM(I42:I43) -> 67570.7598 | J44: 60005.6523
B46: Магазин пр. Победы д. 37 пр. Республики д. 7/2 | C46: Офис пр.Победы, 37 (83) (101,2 м2) №: 00076 | F46: 1046.4606 | G46: 19789.0314 | H46: 356.226 | I46: 17880.262
B47: 11.Земельный участок площадью 54кв.м., пр.Победы, д.83, ВП-2 | F47: 321.3 | G47: 710.6154 | I47: 710.6154
A48: 11 | B48: Магазин пр. Победы д. 37 пр. Республики д. 7/2 | C48: Офис пр.Победы, 37 (83) (101,2 м2) №: 00076 | D48: =C48 -> Офис пр.Победы, 37 (83) (101,2 м2) №: 00076 | E48: PPE | F48: =SUM(F46:F47) -> 1367.7606 | G48: =SUM(G46:G47) -> 20499.6468 | H48: =SUM(H46:H47) -> 356.226 | I48: =SUM(I46:I47) -> 18590.8774 | J48: 21184.7818
B50: Офис ВП-1 | C50: Офис пр.Республики 7/2 ВП-1 (94,2 м2 , этаж -1) с долей зем.уч. пл 0,0027га кад №21-319-028-768 №: 08010 | F50: 2284.0128 | G50: 27603.539 | H50: 2647.177 | I50: 12640.225
B51: 12.Земельный участок площадью 27кв.м.,пр.Республики д.7/2, ВП-1 | F51: 174.42 | G51: 470.3534 | I51: 470.3534
A52: 12 | B52: Офис ВП-1 | C52: Офис пр.Республики 7/2 ВП-1 (94,2 м2 , этаж -1) с долей зем.уч. пл 0,0027га кад №21-319-028-768 №: 08010 | D52: =C52 -> Офис пр.Республики 7/2 ВП-1 (94,2 м2 , этаж -1) с долей зем.уч. пл 0,0027га кад №21-319-028-768 №: 08010 | F52: =SUM(F50:F51) -> 2458.4328 | G52: =SUM(G50:G51) -> 28073.8924 | H52: =SUM(H50:H51) -> 2647.177 | I52: =SUM(I50:I51) -> 13110.5784 | J52: 12975.5564 | K52: ext | L52: 94 | M52: =ROUND($M$68/$L$68*L52,0) -> 19564 | N52: =M52-I52 -> 6453.4216
K53: ext | M53: 0 | N53: 0
B54: Офис ВП-2 | C54: Офис пр.Республики 7/2 ВП-2 (102,9 м2) с долей зем.уч. пл 0,0029га кад №21-319-028-768 №: 08011 | F54: 3195.738 | G54: 30152.9105 | H54: 4026.963 | I54: 14227.974 | K54: ext | M54: 0 | N54: -14227.974
B55: 13.Земельный участок площадью 29кв.м., пр.Республики д.7/2, ВП-2 | F55: 187.34 | G55: 505.2872 | I55: 505.2872 | K55: ext | M55: 0 | N55: -505.2872
A56: 13 | B56: Офис ВП-2 | C56: Офис пр.Республики 7/2 ВП-2 (102,9 м2) с долей зем.уч. пл 0,0029га кад №21-319-028-768 №: 08011 | D56: =C56 -> Офис пр.Республики 7/2 ВП-2 (102,9 м2) с долей зем.уч. пл 0,0029га кад №21-319-028-768 №: 08011 | F56: =SUM(F54:F55) -> 3383.078 | G56: =SUM(G54:G55) -> 30658.1977 | H56: =SUM(H54:H55) -> 4026.963 | I56: =SUM(I54:I55) -> 14733.2612 | J56: 14166.7549 | K56: ext | L56: 102 | M56: 21229 | N56: 6495.7388
K57: ext | M57: 0 | N57: 0
B58: Офис ВП-4 пр. Республики д. 9/2 | C58: Офис пр.Республики 9/2 ВП-4 (128,0 м2) с долей зем.уч. пл 0,0035га кад №21-319-028-772 №: 08020 | F58: 3919.4784 | G58: 37009.8406 | H58: 5036.096 | I58: 17490.609 | K58: ext | M58: 0 | N58: -17490.609
B59: 14.Земельный участок площадью 36кв.м., пр.Республики д.7/2, ВП-4 | F59: 232.56 | G59: 627.187 | I59: 627.187 | K59: ext | M59: 0 | N59: -627.187
A60: 14 | B60: Офис ВП-4 пр. Республики д. 9/2 | C60: Офис пр.Республики 9/2 ВП-4 (128,0 м2) с долей зем.уч. пл 0,0035га кад №21-319-028-772 №: 08020 | D60: =C60 -> Офис пр.Республики 9/2 ВП-4 (128,0 м2) с долей зем.уч. пл 0,0035га кад №21-319-028-772 №: 08020 | F60: =SUM(F58:F59) -> 4152.0384 | G60: =SUM(G58:G59) -> 37637.0276 | H60: =SUM(H58:H59) -> 5036.096 | I60: =SUM(I58:I59) -> 18117.796 | J60: 17394.4641 | K60: ext | L60: 128 | M60: 26640 | N60: 8522.204
M61: 0 | N61: 0
B62: Офис ВП-1 | C62: Офис пр.Республики 9/2 ВП-1 (137,3 м2 этаж -1) с долей зем.уч. пл 0,0038га кад №21-319-028-772 №: 08017 | F62: 4453.407 | G62: 40233.1838 | I62: 18765.318 | M62: 0 | N62: -18765.318
B63: 15.Земельный участок площадью 38кв.м. пр.Республики д.9/2, ВП-1 | F63: 245.48 | G63: 662.1208 | I63: 662.1208 | M63: 0 | N63: -662.1208
A64: 15 | B64: Офис ВП-1 | C64: Офис пр.Республики 9/2 ВП-1 (137,3 м2 этаж -1) с долей зем.уч. пл 0,0038га кад №21-319-028-772 №: 08017 | D64: =C64 -> Офис пр.Республики 9/2 ВП-1 (137,3 м2 этаж -1) с долей зем.уч. пл 0,0038га кад №21-319-028-772 №: 08017 | F64: =SUM(F62:F63) -> 4698.887 | G64: =SUM(G62:G63) -> 40895.3046 | H64: =SUM(H62:H63) -> 0 | I64: =SUM(I62:I63) -> 19427.4388 | J64: 18893.2867 | K64: ext | L64: 137 | M64: 28514 | N64: 9086.5612
B66: Офис ВП-2 | C66: Офис пр.Республики 9/2 ВП-2 (364,9 м2 этаж -1) с долей зем.уч. пл 0,0101га кад №21-319-028-772 №: 08018 | F66: 11843.5492 | G66: 106927.0849 | I66: 49876.964
B67: 16.Земельный участок площадью 101кв.м. пр.Республики д.9/2, ВП-2 | F67: 652.46 | G67: 1759.6612 | I67: 1759.6612
A68: 16 | B68: Офис ВП-2 | C68: Офис пр.Республики 9/2 ВП-2 (364,9 м2 этаж -1) с долей зем.уч. пл 0,0101га кад №21-319-028-772 №: 08018 | D68: =C68 -> Офис пр.Республики 9/2 ВП-2 (364,9 м2 этаж -1) с долей зем.уч. пл 0,0101га кад №21-319-028-772 №: 08018 | F68: =SUM(F66:F67) -> 12496.0092 | G68: =SUM(G66:G67) -> 108686.7461 | H68: =SUM(H66:H67) -> 0 | I68: =SUM(I66:I67) -> 51636.6252 | J68: 51212.4271 | K68: x | L68: 365 | M68: 75967 | N68: =M68-I68 -> 24330.3748
B70: Офис ВП-3 д.9/1 ул. Вавилова д.13 | C70: Офис ул.Вавилова, 13 ВП-3 (147,5 м2) №: 05265 | F70: 4318.1618 | G70: 38973.1496 | I70: 18180.157
B71: 20.Земельный участок площадью 32кв.м., ул.Вавилова, д.13, ВП 3 | F71: 174.08 | G71: 596.233 | I71: 596.233
A72: 17 | B72: Офис ВП-3 д.9/1 ул. Вавилова д.13 | C72: Офис ул.Вавилова, 13 ВП-3 (147,5 м2) №: 05265 | D72: =C72 -> Офис ул.Вавилова, 13 ВП-3 (147,5 м2) №: 05265 | F72: =SUM(F70:F71) -> 4492.2418 | G72: =SUM(G70:G71) -> 39569.3826 | H72: =SUM(H70:H71) -> 0 | I72: =SUM(I70:I71) -> 18776.39 | J72: 20264.0113
B74: Офис ВП-1 | C74: Офис ул.Вавилова, 13 ВП-1 (67,1 м2) №: 05279 | F74: 2252.6249 | G74: 13707.2005 | H74: 1873.88 | I74: 9049.621
B75: 18.Земельный участок площадью 10кв.м., ул.Вавилова, д.13, ВП 1 | F75: 54.4 | G75: 186.3136 | I75: 186.3136
A76: 18 | B76: Офис ВП-1 | C76: Офис ул.Вавилова, 13 ВП-1 (67,1 м2) №: 05279 | D76: =C76 -> Офис ул.Вавилова, 13 ВП-1 (67,1 м2) №: 05279 | F76: =SUM(F74:F75) -> 2307.0249 | G76: =SUM(G74:G75) -> 13893.5141 | H76: =SUM(H74:H75) -> 1873.88 | I76: =SUM(I74:I75) -> 9235.9346 | J76: 9140.5704
B78: Офис ВП-2 | C78: Офис ул.Вавилова, 13 ВП-2 (467,6 м2) №: 05281 | F78: 15700.2322 | G78: 95521.415 | I78: 63592.942
B79: 19.Земельный участок площадью 100кв.м., ул.Вавилова, д.13, ВП 2 | F79: 544 | G79: 1863.136 | I79: 1863.136
A80: 19 | B80: Офис ВП-2 | C80: Офис ул.Вавилова, 13 ВП-2 (467,6 м2) №: 05281 | D80: =C80 -> Офис ул.Вавилова, 13 ВП-2 (467,6 м2) №: 05281 | F80: =SUM(F78:F79) -> 16244.2322 | G80: =SUM(G78:G79) -> 97384.551 | H80: =SUM(H78:H79) -> 0 | I80: =SUM(I78:I79) -> 65456.078 | J80: 62679.0094 | K80: x
B82: Офис ВП-3 | C82: Офис пр.Республики 9/1 ВП-3 (133,0 м2) с долей зем.уч. пл 0,0037га кад №21-319-028-773 №: 08016 | F82: 4952.6145 | G82: 30131.3274 | I82: 20059.842
B83: 17.Земельный участок площадью 37кв.м. пр.Республики д.9/1, ВП-3 | F83: 239.02 | G83: 644.5802 | I83: 644.5802
A84: 20 | B84: Офис ВП-3 | C84: Офис пр.Республики 9/1 ВП-3 (133,0 м2) с долей зем.уч. пл 0,0037га кад №21-319-028-773 №: 08016 | D84: =C84 -> Офис пр.Республики 9/1 ВП-3 (133,0 м2) с долей зем.уч. пл 0,0037га кад №21-319-028-773 №: 08016 | F84: =SUM(F82:F83) -> 5191.6345 | G84: =SUM(G82:G83) -> 30775.9076 | H84: =SUM(H82:H83) -> 0 | I84: =SUM(I82:I83) -> 20704.4222 | J84: 18304.2164 | K84: ext | L84: 133 | M84: =ROUND($M$68/$L$68*L84,0) -> 27681 | N84: =M84-I84 -> 6976.5778
B86: Офис ВП-5 | C86: Офис ул.Вавилова, 13 ВП-5/1 (42,9 м2) №: 05268 | F86: 7131.7646 | G86: 43389.1115 | I86: 28886.173
B87: 21.Земельный участок площадью 46кв.м., ул.Вавилова, д.13, ВП 5 | F87: 250.24 | G87: 857.131 | I87: 857.131
A88: 21 | B88: Офис ВП-5 | C88: Офис ул.Вавилова, 13 ВП-5/1 (42,9 м2) №: 05268 | D88: =C88 -> Офис ул.Вавилова, 13 ВП-5/1 (42,9 м2) №: 05268 | F88: =SUM(F86:F87) -> 7382.0046 | G88: =SUM(G86:G87) -> 44246.2425 | H88: =SUM(H86:H87) -> 0 | I88: =SUM(I86:I87) -> 29743.304 | J88: 29178.8009
B90: Офис ВП-8 | C90: Офис ул.Вавилова, 13 ВП-8 (210,5 м2) №: 05257 | F90: 7067.9682 | G90: 43000.9792 | I90: 28627.774
B91: 22.Земельный участок площадью 46кв.м., ул.Вавилова, д.13, ВП 8 | F91: 250.24 | G91: 857.131 | I91: 857.131
A92: 22 | B92: Офис ВП-8 | C92: Офис ул.Вавилова, 13 ВП-8 (210,5 м2) №: 05257 | D92: =C92 -> Офис ул.Вавилова, 13 ВП-8 (210,5 м2) №: 05257 | F92: =SUM(F90:F91) -> 7318.2082 | G92: =SUM(G90:G91) -> 43858.1102 | H92: =SUM(H90:H91) -> 0 | I92: =SUM(I90:I91) -> 29484.905 | J92: 28924.8109
B94: Офис ВП-7 | C94: Офис ул.Вавилова, 13 ВП-7 (105,6 м2) №: 05273 | F94: 3545.3414 | G94: 21571.9876 | I94: 14361.33
B95: 23.Земельный участок площадью 24кв.м., ул.Вавилова, д.13, ВП 7 | F95: 130.56 | G95: 447.2116 | I95: 447.2116
A96: 23 | B96: Офис ВП-7 | C96: Офис ул.Вавилова, 13 ВП-7 (210,0 м2) №: 05273 | D96: Офис ул.Вавилова, 13 ВП-7 (210,0 м2) №: 05273 | F96: =SUM(F94:F95) -> 3675.9014 | G96: =SUM(G94:G95) -> 22019.1992 | H96: =SUM(H94:H95) -> 0 | I96: =SUM(I94:I95) -> 14808.5416 | J96: 14526.234
B98: Магазин ул. Брусиловского д. 72, ВП-1 г. Алматы, ул. Бокейхана д. 39 | C98: Магазин "Асем" ул Брусиловского 72 (736 м2) №: 00089 | F98: 10747.1297 | G98: 132236.3459 | H98: 1209.351 | I98: 125971.13
B99: 24.Земельный участок площадью 255кв.м. ул. Брусиловского д72 | F99: 1127.1 | G99: 3059.5818 | I99: 3059.5818
A100: 24 | B100: Магазин ул. Брусиловского д. 72, ВП-1 г. Алматы, ул. Бокейхана д. 39 | C100: Магазин "Асем" ул Брусиловского 72 (736 м2) №: 00089 | D100: =C100 -> Магазин "Асем" ул Брусиловского 72 (736 м2) №: 00089 | F100: =SUM(F98:F99) -> 11874.2297 | G100: =SUM(G98:G99) -> 135295.9277 | H100: =SUM(H98:H99) -> 1209.351 | I100: =SUM(I98:I99) -> 129030.7118 | J100: 128109.2921 | K100: x
B102: Торговый центр "Береке" г. Караганда, пр. Строителей д. 6/4 | C102: Торговый центр "Береке" г. Караганда (5064,4 м2) №: 01131 *** | F102: 245677.4559 | G102: 646363.8231 | I102: 606295.187
B103: 26.Земельный участок площадью 4500кв.м. г. Караганда, район Казыбек би, пр. Строителей, д 6/4. | F103: 11205 | G103: 18850.986 | I103: 18850.986
A104: 25 | B104: Торговый центр "Береке" г. Караганда, пр. Строителей д. 6/4 | C104: Торговый центр "Береке" г. Караганда (5064,4 м2) №: 01131 *** | D104: =C104 -> Торговый центр "Береке" г. Караганда (5064,4 м2) №: 01131 *** | F104: =SUM(F102:F103) -> 256882.4559 | G104: =SUM(G102:G103) -> 665214.8091 | H104: =SUM(H102:H103) -> 0 | I104: =SUM(I102:I103) -> 625146.173 | J104: 766506.9869 | K104: x | M104: 566266 | N104: =M104-I104 -> -58880.173
B106: Склад г. Шымкент, Сайрамское шоссе | C106: Склад (г.Шымкент) (2562,7 м2) №: 00085 | F106: 25181.584 | I106: 25181.584
B107: 27.Земельный участок площадью 3000кв.м. Южно-Казахстанская область, г. Шымкент, Сайрамское шоссе. | F107: 3690 | G107: 5682.27 | I107: 5682.27
A108: 26 | B108: Склад г. Шымкент, Сайрамское шоссе | C108: Склад (г.Шымкент) (2562,7 м2) №: 00085 | D108: =C108 -> Склад (г.Шымкент) (2562,7 м2) №: 00085 | F108: =SUM(F106:F107) -> 28871.584 | G108: =SUM(G106:G107) -> 5682.27 | H108: =SUM(H106:H107) -> 0 | I108: =SUM(I106:I107) -> 30863.854 | J108: 112998.5761
A109: 27 | B109: 25.Земельный участок площадью 3781кв.м. г. Алматы, район Жетысуский, ул. Бокейханова, д 39. | C109: Земля г.Алматы,Бокейханова39 (0,3781га) №: 00062 Жетысуский р-он, ул.Бокейханова 39 | D109: Земля г.Алматы,Бокейханова39 (0,3781га) №: 00062 Жетысуский р-он, ул.Бокейханова 39 | E109: PPE | F109: 27223.2 | G109: 55943.7538 | I109: 55943.7538 | J109: 63712.0757
A110: 28 | B110: 28.Земельный участок площадью 2063кв.м. Мангыстауская область, г. Актау, 15 микрорайон, на территории бывшего технопарка. | C110: Земельный участок 0,2063 га (Мангистауская обл., г. Актау, м №: 02295 | D110: Земельный участок 0,2063 га (Мангистауская обл., г. Актау, м №: 02295 | F110: 4443.702 | G110: 27388.9836 | I110: 27388.9836 | J110: 8249.7311
A111: 29 | B111: 29.Земельный участок площадью 4900 кв.м. Атырауская область, г. Атырау, ул. Кулманова, район мечети «Имангали». | C111: Земельный участок Атырау, Кулманова р-н мечети Имангали (0,49 га) №: 01852 | D111: Земельный участок Атырау, Кулманова р-н мечети Имангали (0,49 га) №: 01852 | F111: 7791 | G111: 13643.4914 | I111: 13643.4914 | J111: 6910.6464
A112: 30 | B112: Административное здание | C112: Административное здание (Алматы) (182 м2 ) №: 00065 | D112: Административное здание (Алматы) (182 м2 ) №: 00065 | E112: PPE | F112: 1494.4737 | G112: 21130.129 | I112: 18184.781 | J112: 18171.615
A113: 31 | B113: Нежилое помещение | C113: Бытовой корпус (Алматы) (122,8 м20) №: 00064 | D113: Бытовой корпус (Алматы) (122,8 м20) №: 00064 | E113: PPE | F113: 3068.6748 | G113: 14257.0321 | I113: 13138.196 | J113: 18421.736
A114: 32 | B114: Склад | C114: Складские помещения (Алматы) ( 9 шт 1051,7 м2 ) №: 00066 | D114: Складские помещения (Алматы) ( 9 шт 1051,7 м2 ) №: 00066 | E114: PPE | F114: 19995.2021 | G114: 122101.9598 | H114: 37103.783 | I114: 111233.696 | J114: 98751.415 | K114: x | M114: 67929 | N114: =M114-I114 -> -43304.696
A115: 33 | B115: Склад | C115: Склад (Алматы) (208,8 м2) №: 00068 | D115: Склад (Алматы) (208,8 м2) №: 00068 | E115: PPE | F115: 4311.671 | G115: 24241.5986 | I115: 19657.714 | J115: 19471.215
A116: 34 | B116: Торговое помещение | C116: Торговый павильон (Алматы) (70м2) №: 00067 | D116: Торговый павильон (Алматы) (70м2) №: 00067 | E116: PPE | F116: 1968.1877 | G116: 8080.5329 | I116: 7899.111 | J116: 7899.111
F117: =F4+F8+F12+F16+F20+F24+F31+F36+F40+F44+F48+F52+F56+F60+F64+F68+F72+F76+F80+F84+F88+F92+F96+F100+F104+F108+F109+F110+F111+F112+F113+F114+F115+F116 -> 1138180.435 | G117: =G4+G8+G12+G16+G20+G24+G31+G36+G40+G44+G48+G52+G56+G60+G64+G68+G72+G76+G80+G84+G88+G92+G96+G100+G104+G108+G109+G110+G111+G112+G113+G114+G115+G116 -> 5099730.976 | H117: =H4+H8+H12+H16+H20+H24+H31+H36+H40+H44+H48+H52+H56+H60+H64+H68+H72+H76+H80+H84+H88+H92+H96+H100+H104+H108+H109+H110+H111+H112+H113+H114+H115+H116 -> 4255089.877 | I117: =I4+I8+I12+I16+I20+I24+I31+I36+I40+I44+I48+I52+I56+I60+I64+I68+I72+I76+I80+I84+I88+I92+I96+I100+I104+I108+I109+I110+I111+I112+I113+I114+I115+I116 -> 5336710.597 | J117: =J4+J8+J12+J16+J20+J24+J31+J36+J40+J44+J48+J52+J56+J60+J64+J68+J72+J76+J80+J84+J88+J92+J96+J100+J104+J108+J109+J110+J111+J112+J113+J114+J115+J116 -> 5900086.04 | N117: =SUM(N4:N116) -> -217454.6078
I119: =SUMIF(K4:K116,"x",I4:I116) -> 4721089.582 | N119: =N117+MEDH_IP_ext!L84+CTA_IP_ext!N46 -> -671980.8486
I120: =I119/I117 -> 0.8846441072
I123: 9235.9346
I124: 9985.398
I125: 13110.5784
I126: 13138.196
I127: 13643.4914
I128: 14733.2612
I129: 14808.5416
I130: 18117.796
I131: 18184.781
I132: 18776.39
I133: 19427.4388
I134: 20704.4222
I135: 27388.9836
I136: 29484.905
I137: 29743.304
I138: 30863.854
I139: 51636.6252
I140: 57228.2782
I141: 57945.2652
I142: 65456.078
I143: 129030.7118
I144: 435392.8502
I145: 625146.173
I146: 858192.8344
I147: 1703311.003
I148: =SUBTOTAL(9,I123:I147) -> 4284687.095

Sheet MEDH_IP_ext (hidden)
A1: № п/п | B1: Наименование | C1: Наименовани 2009 | D1: Сравнительный подход, тенге | E1: Затратный подход, тенге | F1: Доходный подход, тенге | G1: Fair value 31/12/2010 | H1: Fair value 31/12/2009
A2: 1 | B2: Здания гаража г. Щучинск, ул. Едомского 29 | C2: Гараж легковых автомобилей | D2: 1223.016 | F2: 8455.144 | G2: 3527.297 | H2: 3445.71
B4: Административное здание г. Щучинск, ул. Едомского 29 | C4: Здание ул.Едомского,29 | D4: 15573.585 | E4: 92155.82163 | G4: 54630.526
B5: Земельный участок площадью 2057кв.м. г. Щучинск ул. Едомского, 29 | C5: Зем.участок ул.Едомского,29 | D5: 1991.176 | E5: 2110.326 | G5: 2110.326
A6: 2 | B6: Административное здание г. Щучинск, ул. Едомского 29 | C6: Здание ул.Едомского,29 | D6: =SUM(D4:D5) -> 17564.761 | E6: =SUM(E4:E5) -> 94266.14763 | F6: =SUM(F4:F5) -> 0 | G6: =SUM(G4:G5) -> 56740.852 | H6: 53993.955
A8: 3 | B8: Помещение Бизнес Центра (Секция Ж) г. Астана, ул. Б. Момышулы | C8: Здание Меруерт, секция "Ж", Момышулы 12 | D8: 123470.9019 | E8: 463390.8443 | F8: 50128.839 | G8: 362381.666 | H8: 359496.101 | I8: x
A10: 4 | B10: Помещение Бизнес Центра (Секция В) г. Астана, ул. Б. Момышулы | C10: Здание Меруерт, секция "В", Момышулы 12 | D10: 107283.978 | E10: 402640.7209 | F10: 147804.669 | G10: 345595.407 | H10: 327270.706 | I10: x
B12: Административное здание г. Астана, пр. Республики 68 | C12: Ул.Серова,5 | D12: 127115.2454 | E12: 484101.3187 | F12: 205765.132 | G12: 186408.819
B13: Земельный участок площадью 2336кв.м. ул. Серова, 5 (пр.Республики , 68) | C13: Зем.участок ул.Серова,5 | D13: 11516.48 | E13: 20256.74 | G13: 20256.74
A14: 5 | B14: Административное здание г. Астана, пр. Республики 68 | C14: Ул.Серова,5 | D14: =SUM(D12:D13) -> 138631.7254 | E14: =SUM(E12:E13) -> 504358.0587 | F14: =SUM(F12:F13) -> 205765.132 | G14: =SUM(G12:G13) -> 206665.559 | H14: 177128.014 | I14: x | J14: 2965 | K14: 279204 | L14: =K14-G14 -> 72538.441
B16: Земельный участок площадью 2354кв.м. г. Кокшетау ул. Коммунистическая угол ул. Момышулы | C16: Земля г. Кокчетав | D16: 1518.33 | E16: 5270.582 | G16: 5270.582
B17: Забор на территории зем. участка в г. Кокшетау | D17: 1062.5 | G17: 1062.5
A18: 6 | B18: Земельный участок площадью 2354кв.м. г. Кокшетау ул. Коммунистическая угол ул. Момышулы | C18: Земля г. Кокчетав | D18: =SUM(D16:D17) -> 2580.83 | E18: =SUM(E16:E17) -> 5270.582 | F18: =SUM(F16:F17) -> 0 | G18: =SUM(G16:G17) -> 6333.082 | H18: 5368.81825
A20: 7 | B20: Земельный участок площадью 1960кв.м. г. Петропавловск | C20: Земля г. Петропавловск | D20: 1244.6 | E20: 5367.866 | G20: 5367.866 | H20: 5071.97925
A22: 8 | B22: Земельный участок площадью 4762кв.м. г. Темиртау | C22: Земля г. Темиртау | D22: 2964.345 | E22: 4464.156 | G22: 4464.156 | H22: 1553.2615
B24: Земельный участок площадью 1493кв.м. | D24: 2538.1 | E24: 4874.518 | G24: 2538.1
B25: Земельный участок площадью 1100кв.м. | D25: 1870 | E25: 3591.401 | G25: 1870
B26: Земельный участок площадью 617кв.м. | D26: 1048.9 | E26: 2014.516 | G26: 1048.9
B27: Земельный участок площадью 2350кв.м. | D27: 3995 | E27: 7672.612 | G27: 3995
B28: Земельный участок площадью 3849кв.м. | D28: 6543.3 | E28: 12566.587 | G28: 6543.3
B29: Земельный участок площадью 750кв.м. | D29: 1275 | E29: 2448.756 | G29: 1275
B30: Земельный участок площадью 700кв.м. | D30: 1190 | E30: 2285.437 | G30: 1190
B31: Земельный участок площадью 632кв.м. | D31: 1074.4 | E31: 2063.453 | G31: 1074.4
B32: Земельный участок площадью 700кв.м | D32: 1190 | E32: 2285.437 | G32: 1190
B33: Земельный участок площадью 790кв.м. | D33: 1343 | E33: 2579.353 | G33: 1343
B34: Земельный участок площадью 680кв.м. | D34: 1156 | E34: 2220.139 | G34: 1156
B35: Земельный участок площадью 940кв.м. | D35: 1598 | E35: 3069.015 | G35: 1598
B36: Земельный участок площадью 800кв.м. | D36: 1360 | E36: 2611.928 | G36: 1360
B37: Земельный участок площадью 602кв.м. | D37: 1023.4 | E37: 1965.432 | G37: 1023.4
B38: Земельный участок площадью 598кв.м. | D38: 1016.6 | E38: 1952.46 | G38: 1016.6
B39: Земельный участок площадью 466кв.м. | D39: 792.2 | E39: 1521.463 | G39: 792.2
B40: Земельный участок площадью 970кв.м. | D40: 1649 | E40: 3167.036 | G40: 1649
B41: Земельный участок площадью 595кв.м. | D41: 1011.5 | E41: 1942.585 | G41: 1011.5
B42: Земельный участок площадью 620кв.м. | D42: 1054 | E42: 2024.244 | G42: 1054
B43: Земельный участок площадью 930кв.м. | D43: 1581 | E43: 3036.44 | G43: 1581
B44: Земельный участок площадью 850кв.м. | D44: 1445 | E44: 2775.247 | G44: 1445
B45: Земельный участок площадью 675кв.м. | D45: 1147.5 | E45: 2203.777 | G45: 1147.5
B46: Земельный участок площадью 759кв.м. | D46: 1290.3 | E46: 2478.089 | G46: 1290.3
B47: Земельный участок площадью 661кв.м. | D47: 1123.7 | E47: 2158.083 | G47: 1123.7
B48: Земельный участок площадью 650кв.м. | D48: 1105 | E48: 2122.265 | G48: 1105
B49: Земельный участок площадью 650кв.м | D49: 1105 | E49: 2122.265 | G49: 1105
B50: Земельный участок площадью 490кв.м. | D50: 833 | E50: 1599.88 | G50: 833
B51: Земельный участок площадью 730кв.м. | D51: 1241 | E51: 2383.458 | G51: 1241
B52: Земельный участок площадью 1030кв.м. | D52: 1751 | E52: 3362.931 | G52: 1751
A53: 9 | B53: Земля пос. Коктал | C53: Земля пос. Коктал | D53: =SUM(D24:D52) -> 45350.9 | E53: =SUM(E24:E52) -> 87098.807 | F53: =SUM(F24:F52) -> 0 | G53: =SUM(G24:G52) -> 45350.9 | H53: 45350.9
A55: 10 | B55: Асфальтное покрытие БЦ "Маржан" | D55: 1124.22145 | G55: 1124.22145 | H55: 0
A56: 11 | B56: Асфальтное покрытие «Адите» | D56: 16779.01436 | G56: 16779.01436 | H56: 0
H57: 0
B58: Гараж г. Астана, ул. Кеменгерулы 17 | D58: 4457.14698 | E58: 17728.05521 | G58: 8703.838 | H58: 0
B59: Пожарное депо г. Астана, ул. Кеменгерулы 17 | D59: 1499.19336 | E59: 9998.92691 | G59: 2774.153 | H59: 0
B60: Проходная г. Астана, ул. Кеменгерулы 17 | D60: 3215.01961 | E60: 10927.09734 | G60: 3986.228 | H60: 0
B61: Трансформаторная подстанция №1 г. Астана, ул. Кеменгерулы 17 | D61: 3753.03303 | E61: 6227.17979 | G61: 4124.155 | H61: 0
B62: Трансформаторная подстанция №2 г. Астана, ул. Кеменгерулы 17 | D62: 1564.46268 | E62: 2387.92938 | G62: 1687.982 | H62: 0
B63: Цех г. Астана, ул. Кеменгерулы 17 | D63: 2552.59114 | E63: 19508.45486 | G63: 5095.97 | H63: 0
B64: Цех, склад, пр. (Главный корпус) г. Астана, ул. Кеменгерулы 17 | D64: 24658.14934 | E64: 367656.7452 | G64: 41808.079 | H64: 0
B65: Цех г. Астана, ул. Кеменгерулы 17 | D65: 42985.94769 | E65: 91230.71536 | G65: 48292.872 | H65: 0
B66: Цех мебельный г. Астана, ул. Кеменгерулы 17 | D66: 6070.10814 | E66: 25735.63465 | G66: 8036.66 | H66: 0
B67: Гараж г. Астана, ул. Кеменгерулы 17 | D67: 908.386 | E67: 7062.53318 | G67: 1823.801 | H67: 0
B68: Цех г. Астана, ул. Кеменгерулы 17 | D68: 3143.48139 | E68: 8623.54709 | G68: 4239.494 | H68: 0
B69: Ж/д подъездной путь №1 | D69: 2687.48561 | G69: 2687.48561 | H69: 0
B70: Ж/д подъездной путь №2 | D70: 1039.25725 | G70: 1039.25725 | H70: 0
B71: Ж/д подъездной путь №3 | D71: 1504.17988 | G71: 1504.17988 | H71: 0
B72: Ж/д подъездной путь №4 | D72: 1193.43208 | G72: 1193.43208 | H72: 0
B73: Ж/д подъездной путь №5 | D73: 4714.23769 | G73: 4714.23769 | H73: 0
B74: Подкрановый путь №2 | D74: 5118.66658 | G74: 5118.66658 | H74: 0
B75: Подкрановый путь №1 | D75: 1921.01781 | G75: 1921.01781 | H75: 0
B76: Подкрановый путь №3 | D76: 842.28338 | G76: 842.28338 | H76: 0
B77: Ограда территории | D77: 463.70836 | G77: 463.70836 | H77: 0
B78: Ограда территории | D78: 1030.38177 | G78: 1030.38177 | H78: 0
B79: Ограждение с воротами без уголков | D79: 2487.70604 | G79: 2487.70604 | H79: 0
B80: Ограждение с воротами с уголками | D80: 1268.86874 | G80: 1268.86874 | H80: 0
B81: Бетонированная площадка для хранения груза | D81: 3237.52026 | G81: 3237.57026 | H81: 0
B82: Земельный участок площадью 87 803кв.м. ул. Кеменгерулы, 17 | D82: 373162.75 | E82: 277997.579 | G82: 277997.579 | H82: 0
A83: 12 | B83: Производственная база Кеменгерулы 17 | D83: =SUM(D58:D82) -> 495479.0148 | E83: =SUM(E58:E82) -> 845084.398 | F83: =SUM(F58:F82) -> 0 | G83: =SUM(G58:G82) -> 436079.6065 | H83: 0 | I83: x | J83: 6721 | K83: 424386 | L83: =K83-G83 -> -11693.60645
D84: =SUM(D2:D52) -> 599092.3736 | E84: =SUM(E2:E52) -> 2170751.971 | F84: =SUM(F2:F52) -> 617918.916 | G84: =G2+G6+G8+G10+G14+G18+G20+G22+G53+G55+G56+G83 -> 1490409.627 | H84: =H2+H6+H8+H10+H14+H18+H20+H22+H53+H55+H56+H83 -> 978679.445 | L84: =SUM(L2:L83) -> 60844.83455
G86: =SUMIF(I2:I83,"x",G2:G83) -> 1350722.238
G87: =G86/G84 -> 0.906275841

Sheet CTA_IP_ext (hidden)
A1: № п/п | B1: Наименование | C1: Наименование 2009 | E1: Плошадь, кв.м | F1: Сравнительный подход, тенге | G1: Затратный подход, тенге | H1: Доходный подход, тенге | I1: Fair value 31/12/2010 | J1: Fair value 31/12/2009
B2: Торговый центр «Макси» Лит А | C2: Здание ТЦ "Макси" S 14029,40 м2 (Ак жол 33) | E2: 14029.4 | F2: 2531481.547 | G2: 585127.797 | I2: 1752940.047
B3: Земля под ТЦ "Макси", ул. Акжол, 33 | C3: Земля под ТЦ Макси - (2,225га) | E3: 10703 | F3: 87952.43765 | G3: 45487.75 | I3: 87952.4377
A4: 1 | B4: Торговый центр «Макси» Лит А | C4: Здание ТЦ "Макси" S 14029,40 м2 (Ак жол 33) | E4: 14029.4 | F4: =SUM(F2:F3) -> 2619433.984 | G4: =SUM(G2:G3) -> 630615.547 | H4: =SUM(H2:H3) -> 0 | I4: =SUM(I2:I3) -> 1840892.485 | J4: 2026150.086 | K4: x | M4: =E4*O16 -> 2377655.362 | O4: =I4/E4 -> 131.2167651
B6: Центр торговли «Астыкжан» Лит А, а, а1, г. Костанай | C6: Зд.ТЦ "Астыкжан"-Костанай S 13888.8 м*2 | E6: 13888.8 | F6: 1986079.456 | G6: 751742.0407 | I6: 1368910.748
B7: Земля ТЦ "Астыкжан" г. Костанай | C7: Земля под ТЦ "Астыкжан" 1,0482 га (Костанай) | E7: 32732 | F7: 127516.7364 | G7: 44417.424 | I7: 127516.7364
A8: 2 | B8: Центр торговли «Астыкжан» Лит А, а, а1, г. Костанай | C8: Зд.ТЦ "Астыкжан"-Костанай S 13888.8 м*2 | E8: 13888.8 | F8: =SUM(F6:F7) -> 2113596.192 | G8: =SUM(G6:G7) -> 796159.4647 | H8: =SUM(H6:H7) -> 0 | I8: =SUM(I6:I7) -> 1496427.484 | J8: 1380686.89 | K8: x | O8: =I8/E8 -> 107.7434684
B10: Центр торговли «Астыкжан» | C10: Здание ТЦ "Астыкжан" S 8255,1 м2 (Ак жол 31) | E10: 8255.1 | F10: 1479910.78 | G10: 195741.9278 | H10: 500930.686 | I10: 1390419.29
B11: Земля под ТЦ "Астыкжан" ул. Акжол, 31 | C11: Земля под ТЦ "Астыкжан " 1,1272 га (Ак жол 31) | E11: 11272 | F11: 92628.2236 | G11: 47906 | I11: 92628.2236
A12: 3 | B12: Центр торговли «Астыкжан» | C12: Здание ТЦ "Астыкжан" S 8255,1 м2 (Ак жол 31) | E12: 8255.1 | F12: =SUM(F10:F11) -> 1572539.004 | G12: =SUM(G10:G11) -> 243647.9278 | H12: =SUM(H10:H11) -> 500930.686 | I12: =SUM(I10:I11) -> 1483047.514 | J12: 1432030.096 | K12: x | M12: 1399049 | N12: =M12-I12 -> -83998.5136 | O12: =M12/E12 -> 169.4769294
B14: Торговый центр «Астыкжан» Лит. А | C14: Здание ТЦ "Астыкжан-2" S 13405,3 м2 (Бейсекова 3) | E14: 13405.3 | F14: 2414066.667 | G14: 1422047.599 | H14: 407384.729 | I14: 2372613.408
B15: Земля ТЦ "Астыкжан" ул. Бейсекова | C15: Земля под ТЦ "Астыкжан" 1,8877 га (Бейсекова 3) | E15: 18877 | F15: 157849.5118 | G15: 83436.34 | I15: 157849.5118
A16: 4 | B16: Торговый центр «Астыкжан» Лит. А | C16: Здание ТЦ "Астыкжан-2" S 13405,3 м2 (Бейсекова 3) | E16: 13405.3 | F16: =SUM(F14:F15) -> 2571916.178 | G16: =SUM(G14:G15) -> 1505483.939 | H16: =SUM(H14:H15) -> 407384.729 | I16: =SUM(I14:I15) -> 2530462.92 | J16: 2535996.151 | K16: x | M16: 2271885 | N16: =M16-I16 -> -258577.9198 | O16: =M16/E16 -> 169.4766249
A18: 5 | B18: Однокомнатная квартира мкр. Молодежный, д. 26/1, кв. 5 | C18: Кв. S=45.2 м2 (мкр.Молодежный д26/1 кв5) | D18: PPE | E18: 45.2 | F18: 7459.91223 | G18: 1155.088 | I18: 7144.67 | J18: 7114.2
A20: 6 | B20: Однокомнатная квартира мкр. Молодежный, д. 26/3, кв. 8: | C20: Кв. S=45.5 м2 (мкр.Молодежный д26/3 кв8) | D20: PPE | E20: 45.5 | F20: 7509.42492 | G20: 1163.6095 | H20: 296.379 | I20: 7166.117 | J20: 7315.15
A22: 7 | B22: Трехкомнатная квартира ул. Ирченко, д. 31, кв. 131 | C22: Кв. S=81.6 м2 (ул.Ирченко д31 кв 131) | D22: PPE | E22: 81.6 | F22: 13505.21959 | G22: 2886.6493 | I22: 12974.291 | J22: 12509.386
A24: 8 | B24: Трехкомнатная квартира ул. Габдуллина, д. 19/1, кв. 100 | C24: Кв.S=80.90м2(Габдулина 19/1кв100) | D24: PPE | E24: 80.9 | F24: 13632.39056 | G24: 1675.1487 | I24: 13034.528 | J24: 13824.7
A26: 9 | B26: Двухкомнатная квартира ул. Габдуллина, д. 19, кв. 39 | C26: Кв.S=61.20м2(Габдулина 19кв39) | D26: PPE | E26: 61.2 | F26: 10823.16162 | G26: 2826.64 | I26: 10423.335 | J26: 10458.229
A28: 10 | B28: Трехкомнатная квартира ул. Ташенова (ранее – мкр. Молодежный, д. 39), д. 11/2, кв. 34 | C28: Кв. S=57.10 м2(Ташенова 11/2 кв 34) | D28: PPE | E28: 57.1 | F28: 9383.68461 | G28: 1583.0316 | I28: 8993.653 | J28: 9531.415
B30: Склад Лит. А | C30: Склад S=385м2 (п.Коктал ул.Лесная03) (А) | E30: 385 | G30: 5566.8168 | I30: 5566.817
B31: Земля под Склад, ул. Лесная 03 | C31: Земля под складом 0,0673 га (Лесная,03) | E31: 673 | F31: 3927.33592 | G31: 1144.1 | I31: 3927.3359
A32: 11 | B32: Склад Лит. А | C32: Склад S=385м2 (п.Коктал ул.Лесная03) (А) | E32: 385 | G32: 5566.8168 | I32: 5566.817 | J32: 7920.07795
B34: Конно - спортивный комплекс Лит. А | C34: Конно-сп/компл(офис,кот,клуб,кон)Садов22 | E34: 507 | G34: 9132.3065 | I34: 9132.306
B35: Здание конно - спортивного комплекса Лит. В | C35: Конно-сп/компл(офис,кот,клуб,кон)Садов22 | E35: 300.5 | G35: 9021.2295 | I35: 9021.23
B36: Здание конно - спортивного комплекса Лит. А1, а | C36: Конно-сп/компл(офис,кот,клуб,кон)Садов22 | E36: 36.9 | G36: 664.6591 | I36: 664.659
B37: Здание конно - спортивного комплекса Лит. Б | C37: Конно-сп/компл(офис,кот,клуб,кон)Садов22 | E37: 1866.3 | G37: 56426.9669 | I37: 56426.967
B38: Земля КСК "Клуб Тулпар" | C38: Земля под КСК "Клуб Тулпар" 0,7251га (Садовая 22) | E38: 7251 | F38: 14439.45287 | G38: 12326.7 | I38: 14439.452
A39: 12 | B39: Конно - спортивный комплекс Лит. А | C39: Конно-сп/компл(офис,кот,клуб,кон)Садов22 | E39: 507 | F39: =SUM(F34:F38) -> 14439.45287 | G39: =SUM(G34:G38) -> 87571.862 | H39: =SUM(H34:H38) -> 0 | I39: =SUM(I34:I38) -> 89684.614 | J39: 169814.1377 | K39: x | M39: 0 | N39: =M39-I39 -> -89684.614
A41: 13 | B41: Помещение (рамник) Лит. А | C41: Помещение(Рамник)S=595.5м2Садовая20 | E41: 595.5 | G41: 4523.089 | I41: 4523.089 | J41: 1457.22371
B43: Рем. тех. станция: контора, с. Астраханка | C43: Рем.тех.станция S=96 000 кв.м | E43: 459.8 | G43: 4371.978 | I43: 4371.978
B44: Земля под Рем. Тех. Станция, с. Астраханка | C44: Земля под рем-тех.станц 9,2633га (Астраханка) | E44: 92633 | F44: 0 | G44: 78738.05 | I44: 78738.05
A45: 14 | B45: Рем. тех. станция: контора, с. Астраханка | C45: Рем.тех.станция S=96 000 кв.м | E45: 459.8 | F45: =SUM(F43:F44) -> 0 | G45: =SUM(G43:G44) -> 83110.028 | H45: =SUM(H43:H44) -> 0 | I45: =SUM(I43:I44) -> 83110.028 | J45: 181582.8404 | K45: x | M45: 0 | N45: =M45-I45 -> -83110.028
F46: =F4+F8+F12+F16+F18+F20+F22+F24+F26+F28+F32+F39+F41+F45 -> 8954238.605 | G46: =G4+G8+G12+G16+G18+G20+G22+G24+G26+G28+G32+G39+G41+G45 -> 3367968.842 | H46: =H4+H8+H12+H16+H18+H20+H22+H24+H26+H28+H32+H39+H41+H45 -> 908611.794 | I46: =I4+I8+I12+I16+I18+I20+I22+I24+I26+I28+I32+I39+I41+I45 -> 7593451.544 | J46: =J4+J8+J12+J16+J18+J20+J22+J24+J26+J28+J32+J39+J41+J45 -> 7796390.583 | N46: =SUM(N4:N45) -> -515371.0754
I48: =SUMIF(K4:K45,"x",I4:I45) -> 7523625.044
I49: =I48/I46 -> 0.9908043793

Sheet ASTLOG_IP_ext (hidden)
A1: № | B1: Наименование | C1: Наименование 2009 | D1: Затратный подход, в тенге | E1: Сравнительный подход, в тенге | F1: Доходный подход, в тенге | G1: Fair value 31/12/2010 | H1: Fair value 31/12/2009
B2: Склад лит.К 2792,2 кв.м. шоссе Алаш, 12 | C2: Автосалон | D2: 47750.55252 | E2: 246143.7217 | F2: 112901.915 | G2: 113636.685 | H2: 105111.404
B3: Склад №1 лит.З,З1 4494,4 кв.м. шоссе Алаш, 12 | C3: Оптовый склад №1 | D3: 70510.68697 | E3: 396199.5354 | F3: 0 | G3: 140914.9 | H3: 119715.404
B4: Склад №2 лит.Ж 4438,2 кв.м. шоссе Алаш, 12 | C4: Оптовый склад №2 | D4: 108317.9892 | E4: 391245.2781 | F4: 1002.573 | G4: 151252.055 | H4: 119716.426
B5: Офисное здание лит.А 579,8кв.м. шоссе Алаш, №.12 | C5: Офис (гостиница) /группа-1/ | D5: 12356.35791 | E5: 85000.16777 | F5: 10441.613 | G5: 61680.055 | H5: 68740.112
B6: Гараж, сауна, ПТО лит.В 508,4 кв.м. шоссе Алаш, 12 | C6: Сауна + Гараж | D6: 9569.40348 | E6: 50106.75861 | F6: 0 | G6: 15650.007 | H6: 15222.32
B7: Склад №1 лит.Е 5184,0 кв.м. шоссе Алаш, 12 | C7: Склад №1 | D7: 136521.4336 | E7: 457034.6411 | F7: 0 | G7: 194213.811 | H7: 138832.704
B8: Склад №2 лит.Д 3966,0 кв.м. шоссе Алаш,12 | C8: Склад №2 | D8: 105114.7373 | E8: 349618.9385 | F8: 12695.155 | G8: 138035.144 | H8: 106213.446
B9: Склад №3 лит.Г 5281,2кв.м. шоссе Алаш, 12 | C9: Склад №3 | D9: 139437.9962 | E9: 465559.1372 | F9: 126691.646 | G9: 196610.24 | H9: 141435.817
B10: Компрессорная лит.И 832,4 кв.м.шоссе Алаш, 12 | C10: Компрессорная с подстанцией /группа-2/ | D10: 8527.57308 | E10: 0 | F10: 0 | G10: 8527.573 | H10: 8083.167
B11: Служебно-бытовой корпус лит.Б 451,9кв.м.шоссе Алаш, 12 | C11: Служебно-бытовой корпус (Офис администра) /группа-1/ | D11: 14418.98718 | E11: 66249.69958 | F11: 0 | G11: 43598.759 | H11: 54105.61
B12: Бутики шоссе Алаш, 12 10штук | C12: Бутики /группа 1/ | D12: 0 | E12: 0 | F12: 3738.798 | G12: 3738.798 | H12: 3254.813
B13: Земельный участок 8,8290га | C13: Земля | D13: 375232.5 | E13: 447809.897 | F13: 0 | G13: 447809.897 | H13: 486951.999
A14: 1 | B14: Складская база | G14: =SUM(G2:G13) -> 1515667.924 | H14: =SUM(H2:H13) -> 1367383.222 | I14: x
D15: =SUM(D2:D13) -> 1027758.217 | E15: =SUM(E2:E13) -> 2954967.775 | F15: =SUM(F2:F13) -> 267471.7 | G15: =G14 -> 1515667.924 | H15: =H14 -> 1367383.222
G17: =G14 -> 1515667.924
G18: =G17/G15 -> 1

Sheet Sheet4 (hidden)
B1: TSC shares | C1: Invest, KKZT | D1: Total shares | E1: Share-holding | F1: NCI shares | G1: NCI share | I1: TSC shares | J1: Invest, KKZT | K1: Share-holding | L1: NCI shares | M1: NCI share | O1: Total shares
A2: 2005-01-01 | B2: 52000 | C2: 52000
A3: 2005-04-30 | B3: 19100 | C3: 19100
A4: 2005-10-25 | B4: 2355 | C4: 2355
A5: 2005-11-14 | B5: 59393 | C5: 50780
A6: 2005-11-15 | B6: 287030 | C6: 200677
A7: 2005-11-16 | B7: 69022 | C7: 50693
A8: 2005-12-02 | B8: 500000 | C8: 500025
A9: 2005-12-06 | B9: 500000 | C9: 500025
A10: 2005-12-08 | B10: 500000 | C10: 500025
A11: 2006-01-01 | B11: 1988900 | C11: 1875680 | D11: 2246610 | E11: =IFERROR(B11/D11,0%) -> 0.8852893916 | F11: =D11-B11 -> 257710 | G11: =IFERROR(F11/D11,0) -> 0.1147106084 | I11: =B11 -> 1988900 | J11: =C11 -> 1875680 | K11: =IFERROR(I11/O11,0%) -> 0.8852893916 | L11: =F11 -> 257710 | M11: =IFERROR(L11/O11,0) -> 0.1147106084 | O11: =D11 -> 2246610
A12: 2006-03-01 | B12: 182313 | C12: 182313 | D12: 0 | E12: 0 | F12: -182313 | G12: =IFERROR(F12/D12,0) -> 0 | I12: =I11+B12 -> 2171213 | J12: 2057993 | K12: 0.966439658 | L12: =L11+F12 -> 75397 | M12: 0.03356034203 | O12: =O11+D12 -> 2246610
A13: 2006-05-01 | B13: 981988 | C13: 981988 | D13: 1017414 | E13: 0.9651803494 | F13: 35426 | G13: 0.0348196506 | I13: 3153201 | J13: 3039981 | K13: 0.9660471247 | L13: 110823 | M13: 0.03395287535 | O13: 3264024
A14: 2006-07-01 | B14: 0 | C14: 0 | D14: 35806 | E14: 0 | F14: 35806 | G14: 1 | I14: 3153201 | J14: 3039981 | K14: 0.9555646806 | L14: 146629 | M14: 0.0444353194 | O14: 3299830
A15: 2006-09-01 | B15: 400000 | C15: 400000 | D15: 400000 | E15: 1 | F15: 0 | G15: 0 | I15: 3553201 | J15: 3439981 | K15: 0.9603687196 | L15: 146629 | M15: 0.03963128036 | O15: 3699830
A16: 2006-10-01 | B16: 554789 | C16: 554789 | D16: 593168 | E16: 0.9352982629 | F16: 38379 | G16: 0.06470173711 | I16: 4107990 | J16: 3994770 | K16: 0.9569047086 | L16: 185008 | M16: 0.04309529145 | O16: 4292998
A17: 2006-11-01 | B17: 26 | C17: 26 | D17: 12000 | E17: =IFERROR(B17/D17,0%) -> 0.002166666667 | F17: 11974 | G17: 0.9978333333 | I17: 4108016 | J17: 3994796 | K17: 0.9542434166 | L17: 196982 | M17: 0.04575658339 | O17: 4304998
A18: 2007-01-01 | B18: 2548759 | C18: 1512652 | D18: 3195002 | E18: 0.797733147 | F18: 646243 | G18: 0.202266853 | I18: 6656775 | J18: 5507448 | K18: 0.88757 | L18: 843225 | M18: 0.11243 | O18: 7500000
A19: 2007-04-01 | B19: 2662710 | C19: 2662710 | D19: 2664310 | E19: 0.9993994693 | F19: 1600 | G19: 0.000600530719 | I19: =I18+B19 -> 9319485 | J19: =J18+C19 -> 8170158 | K19: 0.9168831923 | L19: 844825 | M19: 0.08311680773 | O19: 10164310
A20: 2007-05-01 | B20: 155550 | C20: 156959 | D20: 335690 | E20: 0.4633739462 | F20: 180140 | G20: 0.5366260538 | I20: =I19+B20 -> 9475035 | J20: =J19+C20 -> 8327117 | K20: 0.9023842857 | L20: 1024965 | M20: 0.09761571429 | O20: 10500000
A21: 2007-07-01 | B21: 2707017 | C21: 2708371 | D21: 2768417 | E21: 0.9778212603 | F21: 61400 | G21: 0.02217873969 | I21: 12182052 | J21: 11035488 | K21: 0.9181239932 | L21: 1086365 | M21: 0.08187600676 | O21: 13268417
A22: 2007-08-01 | B22: 300000 | C22: 300050 | D22: 231583 | E22: 1.295431875 | F22: -68417 | G22: -0.2954318754 | I22: 12482052 | J22: 11335538 | K22: 0.9245964444 | L22: 1017948 | M22: 0.07540355556 | O22: 13500000
A23: 2008-01-01 | B23: 0 | C23: 0 | D23: 0 | E23: 0 | F23: 0 | G23: 0 | I23: =I22+B23 -> 12482052 | J23: =J22+C23 -> 11335538 | K23: 0.9245964444 | L23: 1017948 | M23: 0.07540355556 | O23: 13500000
A24: 2009-01-01 | B24: 1872307 | C24: 1872307 | D24: =B24 -> 1872307 | E24: 1 | F24: 0 | G24: 0 | I24: 14354359 | J24: 13207845 | K24: 0.9337804013 | L24: 1017948 | M24: 0.06621959866 | O24: 15372307
A25: 2009-02-01 | B25: 127693 | C25: 127693 | D25: =B25 -> 127693 | E25: 1 | F25: 0 | G25: 0 | I25: =I24+B25 -> 14482052 | J25: 13335538 | K25: 0.9343259355 | L25: 1017948 | M25: 0.06567406452 | O25: 15500000
A26: 2009-07-01 | B26: -609552 | C26: -561294 | D26: 0 | E26: 0 | F26: 609552 | G26: 0 | I26: 13872500 | J26: 12774244 | K26: 0.895 | L26: 1627500 | M26: 0.105 | O26: 15500000
A27: 2009-09-01 | B27: -775000 | C27: -713645 | D27: 0 | E27: 0 | F27: 775000 | G27: 0 | I27: 13097500 | J27: 12060599 | K27: 0.845 | L27: 2402500 | M27: 0.155 | O27: 15500000
A28: 2010-01-01 | B28: 0 | C28: 0 | D28: 0 | E28: 0 | F28: 0 | G28: 0 | I28: 13097500 | J28: 12060599 | K28: 0.845 | L28: 2402500 | M28: 0.155 | O28: 15500000

Sheet Acquisition (hidden)
B2: Share capital of FKTSC before contribution | D2: =C2/$C$2 ->  | G2: Calculation of goodwill:
B3: Share capital of FKTSC after contribution | D3: =C3/$C$3 -> 
G4: FV of consideration: | K4: =SUM(C10:C12) -> 0
B5: Opening balance of investment in FKTSC: | G5: FV of previously held investment: | K5: =C6 -> 0 | L5: (w1)
B6: Medet Holding | D6: =C6/$C$2 ->  | G6: NCI share of net assets: | K6: =K18*(1-(D6+D10+D11+D12)) ->  | L6: (w2)
K7: =SUM(K4:K6) -> 
B8: Share purchased: | G8: FV of net assets aquired: | K8: =C40 -> 0
B9: Medet Holding | G9: Negative goowill (APIC) | K9: =K7-K8 -> 
B10: For cash | D10: =C10/$C$3 -> 
B11: As offset with trade receivables | D11: =C11/$C$3 ->  | G11: (w1) FV of previously held interest
B12: Concern Tsesna Astyk | D12: =C12/$C$3 -> 
G13: Since opening investment held in FKTSC is not significant, we assume
B14: Closing balance of investment in FKTSC: | G14: that FV of previously held investment is equal to its cost.
B15: Medet Holding | D15: =C15/$C$3 -> 
B16: Concern Tsesna Astyk | D16: =C16/$C$3 ->  | G16: (w2) NCI share of net assets:
C17: =SUM(C15:C16) -> 0 | D17: =SUM(D15:D16) ->  | K17: Total | L17: Group | M17: NCI
G18: Net assets at aquisition: | K18: =C40 -> 0 | L18: =K18-M18 ->  | M18: =K6 -> 
G19: Change in NA | K19: =K20-K18 -> 0 | L19: =K19-M19 ->  | M19: =K19*(1-D17) -> 
B20: Purchase date: | C20: 2009-07-20 | G20: Net assets at 31 December 2009: | L20: =SUM(L18:L19) ->  | M20: =SUM(M18:M19) -> 
G21: Per FS:
C22: 2009-12-31 | G22: Diff: | K22: =K20-K21 -> 0
B23: ASSETS
B24: Cash and cash equivalents | G24: Dr Net assets at acquisition | K24: =K8 -> 0
B25: Trade and other receivables | G25: Cr Cash paid | K25: =(K4) * -1 -> 0
B26: Current tax assets | G26: Cr NCI | K26: =(K6) * -1 -> 
B27: Inventories | G27: Cr Gain from previously held investment | K27: =(K5) * -1 -> 0
B28: Property, plant and equipment | G28: Cr APIC | K28: =K9 -> 
B29: Intangibles
B30: Deffered income tax assets
B31: Total assets | C31: =SUM(C24:C30) -> 0
B33: LIABILITIES | I33: NA at acquistion | L33: NA at reporting date
B34: Loans and borrowings | G34: Share capital | L34: =M34-J34 -> 0 | O34: =M34-J34 -> 0
B35: Trade and other payables | G35: Retained earnings | O35: =M35-J35 -> 0
B36: Current tax liabilities | J36: =SUM(J34:J35) -> 0 | M36: =SUM(M34:M35) -> 0 | O36: =M36-J36 -> 0
B37: Deferred tax liability
B38: Total liabilities | C38: =SUM(C34:C37) -> 0
B40: Net identifiable assets and liabilities | C40: =C31+C38 -> 0
B42: Consideration paid in cash
B43: Consideration paid via offset with trade receivables
B44: Total consideration | C44: =SUM(C42:C43) -> 0
B45: Gain recognised in equity | C45: =C40-C44 -> 0
B46: Cash acquired | C46: =C24 -> 0
B47: Net cash inflow | C47: =C46-C42 -> 0

Sheet names (hidden)
A3: Subsidiaries | B3: Short name | C3: In-charge | D3: 2012-05-16
A4: Tsesna Corporation | B4: TSC | C4: Teleusheva Saule | F4: Moderate | G4: all
A5: Tsesna Bank | B5: TSB | C5: Zhakupova Ainur | D5: provided Audit report and WPs, pack to be finalised | E5: sent | F5: High | G5: all
A6: Tsesna Capital | B6: TSCAP | C6: Included to Tsesnabank / Tursunbekova Maira | E6: N/A | G6: N/A
A7: Medet Holding | B7: MEDH | C7: Murzagaliyev Dauren | D7: provided | E7: sent | F7: Low | G7: all
A8: Info Tsess Newspaper | B8: INFTS | C8: Akhmetova Alma | D8: provided | E8: sent | G8: all
A9: Concern Tsesna Astyk | B9: CTA | C9: Dana Aldamzharova | H9: report | I9: Concern Tsesna Astyk
A10: Zhaltyr Elevator | B10: ZHALT | C10: Murzagaliyev Dauren | D10: provided | E10: sent | F10: Low | G10: all
A11: Tsesna Astyk Bread Plant | B11: BREAD | C11: Bizhumanov Daniyar | D11: provided, audit report | E11: sent | F11: Low | G11: all
A12: Akmola Dirmen | B12: AKMDIR | C12: Duysupzhanova Gulnaz | D12: provided | E12: sent | F12: Low
A13: Elevator Tsesna Astyk | B13: ELEV | C13: Duysupzhanova Gulnaz | D13: provided | E13: sent | F13: Low | H13: report | I13: Elevator Tsesna Astyk
A14: Alma Tsess | B14: ALMTS | C14: Davletov Sanjar | D14: provided | E14: sent | G14: all
A15: Tsesna Mak | B15: TSMAK | C15: Andrey Krom | D15: provided | E15: sent | H15: report | I15: Tsesna Mak
A16: Astyk Logistic | B16: ALTLOG | C16: Bizhumanov Daniyar | F16: Low | H16: report | I16: Astyk Logistic
A17: Tsesna Garant | B17: TSG | C17: Included to Tsesnabank / Vladislav Afimin | D17: audit report and WP's | E17: N/A | G17: N/A
A18: Tsesna Footbol Club | B18: FCTSC | C18: Davletov Sanjar | D18: provided | E18: sent | H18: report | I18: Tsesna Footbol Club

Sheet codes (hidden)
A1: Company / Description of adjustments
A2: Short name
A3: Share:
A4: ASSETS | C4: АКТИВЫ
A5: Cash and cash equivalents | C5: Денежные средства и их эквиваленты
A6: Due from the NBRK | C6: Счета и депозиты в Национальном Банке Республики Казахстан
A7: Loans and advances to banks | C7: Кредиты и авансы, выданные банкам
A8: Amounts receivable under reverse repurchase agreements | C8: Финансовые инструменты обремененные залогом по сделкам «РЕПО»
A9: Loans to customers | C9: Кредиты, выданные клиентам
A10: FVTPL instruments | C10: Финансовые инструменты, оцениваемые по справедливой стоимости, изменения которой отражаются в составе прибыли или убытка за период
A11: - Held by the Group | C11: - удерживаемые группой
A12: - Pledged under sale and repurchase agreements | C12: - проданные в рамках соглашений о продаже с обязательством обратного выкупа (сделки «РЕПО»)
A13: AFS assets | C13: Финансовые активы, имеющиеся в наличии для продажи
A14: HTM securities | C14: Инвестиции, удерживаемые до срока погашения
A15: Trade and other receivables | C15: Торговая и прочая дебиторская задолженность
A16: Current tax asset | C16: Дебиторская задолженность по текущему подоходному налогу
A17: Inventories | C17: Запасы
A18: Loans to related parties | C18: Кредиты связанным сторонам
A19: Investments in subsidiaries | C19: Инвестиции в дочерние предприятия
A20: Investments in associate | C20: Инвестиции, учитываемые методом долевого участия
A21: Investment property | C21: Инвестиционная собственность
A22: Property, plant and equipment | C22: Основные средства
A23: Intangible assets | C23: Нематериальные активы
A24: Assets held for sale | C24: Активы, удерживаемые для продажи
A25: Deferred tax asset | C25: Требования по отложенному налогу
A26: Total assets | C26: Всего активов
A28: LIABILITIES
A29: Loans and borrowings | C29: Кредиты и займы
A30: Current accounts and deposits from customers | C30: Текущие счета и депозиты клиентов
A31: Deposits and balances from banks and other financial institutions | C31: Счета и депозиты банков
A32: Trade and other payables | C32: Торговая и прочая кредиторская задолженность
A33: Amounts payable under repurchase agreements | C33: Ценные бумаги, приобретенные в рамках соглашений о покупке с обязательством обратной продажи (сделки «обратного РЕПО»)
C34: Финансовые инструменты, оцениваемые по справедливой стоимости, изменения которой отражаются в составе прибыли или убытка за период
C35: Обязательства, удерживаемые для продажи
A36: Income tax payable | C36: Кредиторская задолженность по текущему подоходному налогу
A37: Current tax liability | C37: Кредиторская задолженность по текущему подоходному налогу
A38: Deferred tax liability | C38: Обязательства по отложенному налогу
A39: Total liabilities | C39: Всего обязательств
A41: EQUITY | C41: ОБЯЗАТЕЛЬСТВА
A42: Share capital | C42: Акционерный (уставный) капитал
A43: Share premium | C43: Эмиссионный доход
A44: Reserves for general banking risks | C44: Резерв на общие банковские риски
A45: Cumulative translation reserve | C45: Накопленный резерв по переводу в валюту представления данных
A46: Revaluation reserve for available-for-sale assets | C46: Резерв по переоценке финансовых активов, имеющихся в наличии для продажи
A47: APIC | C47: Дополнительно-оплаченный капитал
A48: Net income | C48: Чистая прибыль / (убыток) текущего года
A49: Retained earnings | C49: Нераспределенная прибыль (накопленные убытки)
A50: Minority interest | C50: Доля неконтролирующих акционеров
A51: Equity | C51: Всего капитала
A52: Total equity and liabilities | C52: Всего обязательств и капитала
A54: Total assets
A55: Total liabilities
A58: Income statement
A59: Banking revenue | C59: Банковские доходы
A60: Banking expenses | C60: Банковские расходы
A61: Non-banking revenue | C61: Небанковские доходы
A62: Non banking cost of sales | C62: Небанковская себестоимость реализации
A63: Other income | C63: Прочие доходы
A64: Change in fair value of investment property | C64: Изменение справедливой стоимости инвестиционной недвижимости
A65: Distribution expenses | C65: Расходы по реализации
A66: Administrative expenses | C66: Административные расходы
A67: Other expenses | C67: Прочие расходы
A68: Impairment losses | C68: Убытки от обесценения
A69: Non-banking financial income | C69: Небанковские финансовые доходы
A70: Non-banking financial expenses | C70: Небанковские финансовые расходы
A71: Gains from equity-accounted investees | C71: Прибыль/(убыток) от инвестиции в ассоциированное предприятие
A72: Income tax (expense)/benefit | C72: (Расход)/экономия по подоходному налогу
A73: MI net income | C73: Прибыль к распределению между Миноритариями
A74: Net income for the period | C74: Прибыль/(убыток) за год
A78: Statement of changes in equity
A80: Reserves b/f | C80: Остаток на 1 января 2010 года
A81: Currency translation diffs | C81: Курсовые разницы при пересчете показателей зарубежных предприятий из других валют
A82: Transfer b/n reserves
A83: Net change in fair value of available-for-sale assets transferred to profit or loss | C83: Чистое изменение справедливой стоимости активов, имеющихся в наличии для продажи, перенесенное в состав прибыли или убытка
A84: Net change in fair value of available-for-sale assets | C84: Чистое изменение справедливой стоимости активов, имеющихся в наличии для продажи
A85: MI on reserves
A86: Reserves c/f
A87: Consolidated
A89: Revaluation reserve b/f
A90: Transfer to retained earnings
A91: Revaluation reserve c/f
A92: Consolidated
A95: RE, b/f
A96: Net income | C96: Прибыль/(убыток) за год
A97: Business combinations
A98: Disposal of subsidiaries | C98: Выбытие дочерних предприятий
A99: Depreciation of revaluation reserve for property and equipment
A100: Dividends | C100: Дивиденды акционерам
A101: Discount recognised in equity
A102: Loss recognised directly in equity
A103: Transfer of NCI
A104: Transfer between reserves
A105: RE, c/f
A106: Consolidated
A110: MI, b/f | C110: Переоценка объектов основных средств
A111: Net income | C111: Приобретение дочерних предприятий
A112: Reserves | C112: Приобретение доли меньшинства
A113: Business combination | C113: Распределение доли меньшинства
A114: Disposals | C114: Выкуп собственных акций
A115: Transfer from RE | C115: Продажа выкупленных собственных акций
A116: Acquisitions | C116: Прочие вклады собственников и выплаты собственникам
A117: MI, c/f
A118: Consolidated
A120: Share capital, b/f
A121: Disposal of subsidiaries
A122: Transfer from RE
A123: Aqcuisitions
A124: Shares issued | C124: Выпуск акций
A125: Share capital, c/f
A126: Consolidated
A128: APIC b/f
A129: Disposal of subsidiaries
A130: Business combination
A131: NCI
A132: Contributions
A133: APIC c/f
A134: Consolidated
A137: Share of 2nd level subsidiary
A138: Share of 1st level subsidiary
A139: Share of the Parent
A142: 2010
A143: Company / Description of adjustments
A144: Short name
A145: Share:
A146: ASSETS
A147: Cash and cash equivalents
A148: Due from the NBRK
A149: Loans and advances to banks
A150: Amounts receivable under reverse repurchase agreements
A151: Loans to customers
A152: FVTPL instruments
A153: AFS assets
A154: HTM securities
A155: Trade and other receivables
A156: Current tax asset
A157: Inventories
A158: Loans to related parties
A159: Investments in subsidiaries
A160: Investments in associates
A161: Investment property
A162: Property, plant and equipment
A163: Intangible assets
A164: Assets held for sale
A165: Deffered tax assets
A166: Total assets
A168: LIABILITIES
A169: Loans and borrowings
A170: Current accounts and deposits from customers
A171: Deposits and balances from banks and other financial institutions
A172: Trade and other payables
A173: Income tax payable
A174: Deferred tax liability
A175: Total liabilities
A177: EQUITY
A178: Share capital
A179: Reserves
A180: Revaluation reserve
A181: APIC
A182: Net income
A183: Retained earnings
A184: Minority interest
A185: Equity
A186: Total equity and liabilities
A188: Total assets
A189: Total liabilities
A192: Income statement
A193: Banking income
A194: Banking expense
A195: Non-banking income
A196: Non-banking cost of sales
A197: Other income
A198: Change in fair value of investment property
A199: Selling expense
A200: Administrative expense
A201: Other expense
A202: Impairment losses
A203: Non-banking financial income
A204: Non-banking finance expense
A205: Gain from associate
A206: Income tax expense
A207: MI net income
A208: Net income for the period
A212: Statement of changes in equity
A214: Reserves b/f
A215: Currency translation diffs
A216: Transfer b/n reserves
A217: Net change in fair value of available-for-sale assets transferred to profit or loss
A218: Net change in fair value of available-for-sale assets
A219: MI on reserves
A220: Reserves c/f
A221: Consolidated
A223: Revaluation reserve b/f
A224: Transfer to retained earnings
A225: Revaluation reserve c/f
A226: Consolidated
A229: RE, b/f
A230: Net income
A231: Business combinations
A232: Disposal of subsidiaries
A233: Depreciation of revaluation reserve for property and equipment
... 33 more rows

Sheet ФО1
G1: Утвержден
G2: приказом Министра финансов
G3: Республики Казахстан
G4: от 22 декабря 2005 года N 427
B6: Консолидированный отчет о финансовом положении
B7: по состоянию на " 30" сентября 2013 года
B8: (Форма 1)
B10: Наименование организации АО "Корпорация "Цесна"
B11: Вид деятельности организации 74150,70201,51909,74202,67120, 65121
B12: Организационно-правовая форма Акционерное общество
B13: Юридический адрес организации г. Астана, ул.Сарайшык,40
B15: единица измерения | G15: тыс.тенге
C16: Код стр. | D16: На конец отчетного периода | E16: корректировка аудиторов | F16: На конец отчетного периода | G16: На начало отчетного периода
B17: АКТИВЫ
B18: Денежные средства и их эквиваленты | C18: 1 | F18: 34962049 | G18: 36048431
B19: Средства в Национальном Банке Республики Казахстан | C19: 2 | D19: 5504091 | E19: 14 | F19: ='[1]раб табл ФО_2'!CJ16 -> 0
B20: Кредиты и авансы, выданные банкам | C20: 2 | D20: 3800084 | E20: -56172 | F20: 15942808 | G20: 15578350
B21: Дебиторская задолженность по сделкам "обратного репо" | C21: 3 | D21: 47215 | E21: 10559
B22: Финансовые инструменты, оцениваемые по справедливой стоимости, изменения которой отражаются в составе прибыли или убытка за период | C22: 3 | D22: 6991748 | E22: -1490117 | F22: 21328773 | G22: 31411145
B23: Финансовые активы, имеющиеся в наличии для продажи | C23: 4 | D23: 139607 | E23: 2476 | F23: 4873174 | G23: 5642870
B24: Инвестиции, удерживаемые до срока погашения | C24: 5 | F24: 30980670 | G24: 18073395
B25: Кредиты, выданные клиентам | C25: 6 | D25: 216909 | F25: 640340264 | G25: 478826293
B26: Торговая и прочая дебиторская задолженность | C26: 7 | F26: 31564104 | G26: 27425240
B27: Актив, классифицируемый как удерживаемый для продажи
B28: Текущие налоговые активы | C28: 8 | D28: 18932490 | E28: -564051 | F28: 85252 | G28: 262949
B29: Запасы | C29: 9 | F29: 2701748 | G29: 2704758
B30: Инвестиции в ассоциированное предприятие | C30: 10
B31: Инвестиционная недвижимость | C31: 11 | F31: 11937978 | G31: 11917227
B32: Основные средства | C32: 12 | F32: 24488888 | G32: 15898758
B33: Нематериальные активы | C33: 13 | D33: 0 | F33: 1138835 | G33: 1133644
B34: Отсроченные налоговые активы | C34: 14 | G34: 30280
B35: Итого активов | D35: 149412 | E35: 89205 | F35: =SUM(F18:F34) -> 820344543 | G35: =SUM(G18:G34) -> 644953340
B36: ОБЯЗАТЕЛЬСТВА И КАПИТАЛ | D36: 890346 | E36: -47717
B37: Кредиты и займы | C37: 15 | D37: 0 | F37: 71627673 | G37: 48423546
B38: Текущие счета и вклады клиентов | C38: 16 | D38: 0 | F38: 634552888 | G38: 517821058
B39: Вклады и остатки на счетах банков и прочих финансовых институтов | C39: 17 | D39: 131547 | E39: -874 | F39: 22836531 | G39: 7786891
B40: Торговая и прочая кредиторская задолженность | C40: 18 | F40: 15693617 | G40: =8531699+4017925 -> 12549624
B41: Текущие налоговые обязательства | C41: 19 | D41: 496595 | E41: 55180 | F41: 327757 | G41: 12077
B42: Отсроченное налоговое обязательство | C42: 20 | F42: 2162983 | G42: 2126611
B43: Итого обязательств | F43: =SUM(F37:F42) -> 747201449 | G43: =SUM(G37:G42) -> 588719807
B44: Акционерный капитал | C44: 21 | F44: 18750000 | G44: 18750000
B45: Резервы | C45: 22 | D45: 6690 | E45: -196 | F45: 11041334 | G45: =5688653-33752+277865 -> 5932766
B46: Прочий капитал | C46: 23 | D46: 21267286 | E46: 70529 | F46: -4314688 | G46: -4349516
B47: Нераспределенный доход отч.года прошлых лет | C47: 24 | D47: 0 | F47: 23435872 | G47: 18572708
B48: Чистая прибыль отчетного года | D48: 82099 | E48: -80458
B49: Доля меньшинства | C49: 25 | D49: =SUM(D45:D48) -> 21356075 | E49: =SUM(E45:E48) -> -10125 | F49: 24230576 | G49: 17327575
B50: Итого капитал | F50: =SUM(F44:F49) -> 73143094 | G50: =SUM(G44:G49) -> 56233533
B51: Итого обязательств и капитала | D51: 170380 | E51: 346991 | F51: =F43+F50 -> 820344543 | G51: =G43+G50 -> 644953340
B52: Балансовая стоимость одной простой акции - 3 840 тенге | G52: =G35-G43-G50 -> 0
B53: Балансовая стоимость одной привилегированной акции - 1 050 тенге
B56: Председатель Правления ______________________________________Е.С.Еденбаев
B57: (подпись)
B59: Главный бухгалтер ______________________________________ | F59: А.С.Сагиндыкова
B60: (подпись)
B61: Место печати

Sheet ФО2
B2: Консолидированный отчет о совокупном доходе, по состоянию на 30 сентября 2013 года.
B6: Наименование организации АО "Корпорация "Цесна"
B7: Вид деятельности организации 74150,70201,51909,74202,67120, 65121
B8: Организационно-правовая форма Акционерное общество
B9: Юридический адрес организации г. Астана, ул.Сарайшык, 40
B10: единица измерения | G10: тыс.тенге
D11: тыс. тенге
B12: Наименование показателей | C12: Код стр. | D12: За отчетный период | E12: корректировка аудиторов | F12: За отчетный период | G12: За предыдущий период
B15: Банковские доходы | C15: 1 | D15: ='[2]раб таб 2'!S20 -> 5627377 | E15: -951975 | F15: 69827023 | G15: 51255201
B16: Банковские расходы | C16: 2 | D16: ='[2]раб таб 2'!S21 -> 773108 | E16: 1412097 | F16: -32259913 | G16: -21210180
B17: Небанковские доходы | C17: 3 | D17: =SUM(D15-D16) -> 4854269 | E17: =SUM(E15-E16) -> -2364072 | F17: 9289666 | G17: 8036520
B18: Небанковская себестоимость реализации | C18: 4 | D18: ='[2]раб таб 2'!S23 -> 56494 | E18: -52644 | F18: -7455687 | G18: -5891985
B19: Валовая прибыль (строка 010 – строка 011) | D19: ='[2]раб таб 2'!S24 -> 1702429 | E19: 324720 | F19: =SUM(F15:F18) -> 39401089 | G19: =SUM(G15:G18) -> 32189556
B20: Прочие доходы | C20: 5 | D20: ='[2]раб таб 2'!S25 -> 1597474 | E20: ='[2]форма 2 за 2004г'!AC25 -> 126016 | F20: 467540 | G20: 1255853
B21: Прибыль от инвестиции в ассоциированное предприятие | C21: 6 | D21: ='[2]раб таб 2'!S26 -> 2174773 | E21: -292645
B22: Изменение справедливой стоимости инвестиционной недвижимости | C22: 7 | D22: ='[2]раб таб 2'!S27 -> 27219 | E22: ='[2]форма 2 за 2004г'!AC27 -> 173058
B23: Изменение справедливой стоимости инвестиционной недвижимости | C23: 6
B24: Расходы по реализации | C24: 8 | D24: ='[2]раб таб 2'!S28 -> 466614 | E24: ='[2]форма 2 за 2004г'!AC28 -> 460428 | F24: -1143715 | G24: -1013342
B25: Административные расходы | C25: 9 | F25: -17023492 | G25: -13259724
B26: Прочие расходы | C26: 10 | E26: 0 | F26: -555322 | G26: -824054
B27: Убытки от обесценения | C27: 11 | D27: =SUM(D17+D18+D19-D20-D21-D22-D24+D26) -> 2347112 | E27: =SUM(E17+E18+E19-E20-E21-E22-E24+E26) -> -2558853 | F27: -7393939 | G27: -3485701
F28: =SUM(F19:F27) -> 13752161 | G28: =SUM(G19:G27) -> 14862588
B29: Небанковские финансовые доходы | C29: 12 | D29: 0 | E29: 0 | F29: 297110 | G29: 1471326
B30: Небанковские финансовые расходы | C30: 13 | D30: =D27-D29 -> 2347112 | E30: =E27-E29 -> -2558853 | F30: -888315 | G30: -607798
B31: Доходы по финансированию | D31: =SUM(D27-#REF!) ->  | E31: =SUM(E27-#REF!) -> 
B32: Расходы по финансированию
B33: Прибыль (убыток) до налогообложения | D33: ='[2]раб таб 2'!S35 -> 56478.1347 | E33: ='[2]форма 2 за 2004г'!AC35 -> 11282 | F33: =SUM(F28:F30) -> 13160956 | G33: =SUM(G28:G30) -> 15726116
B34: Расходы по подоходному налогу | C34: 14 | F34: -2588342 | G34: -2254439
B35: Прибыль за год | F35: =SUM(F33:F34) -> 10572614 | G35: =SUM(G33:G34) -> 13471677
B36: Прочий совокупный доход
B37: Чистая прибыль/(убыток) от операций с финансовыми инструментами, оцениваемыми по справедливой стоимости, изменения которой отражаются в составе прибыли или убытка за период
B38: Чистая прибыль от операций с иностранной валютой
B39: Чистое изменение справедливой стоимости активов, имеющихся в наличии для продажи | F39: -74533 | G39: 21984
B40: Чистое изменение справедливой стоимости активов, имеющихся в наличии для продажи, перенесенное в состав прибыли или убытка | F40: 9130
B41: Резерв по переоценки активов, имеющихся в наличии для продажи:
B42: Чистое изменение справедливой стоимости активов, имеющихся в наличии для продажи
B43: Чистое изменение справедливой стоимости активов, имеющихся в наличии для продажи, перенесенное в состав прибыли или убытка | F43: =-'[1]раб табл ФО_2'!CJ95 -> 0 | G43: 0
B44: Курсовые разницы | F44: =[3]TS!DO80 -> 0 | G44: 56033
B45: Прочий совокупный доход (убыток) за год | F45: =SUM(F37:F44) -> -65403 | G45: =SUM(G37:G44) -> 78017
B46: Всего совокупного дохода за год | F46: =F35+F45 -> 10507211 | G46: =G35+G45 -> 13549694
B47: Прибыль к распределению между:
B48: Акционерами Компании | F48: 5650174 | G48: =G35-G49 -> 8530820
B49: Миноритариями | F49: 4922440 | G49: 4940857
B50: Прибыль за год | F50: =SUM(F48:F49) -> 10572614 | G50: 4199477
B51: Всего совокупного дохода к распределению между:
B52: Акционерами Компании | F52: 5584771 | G52: =G46-G53 -> 8608837
B53: Миноритариями | F53: 4922440 | G53: 4940857
B54: Всего совокупного дохода за год | F54: =SUM(F52:F53) -> 10507211 | G54: =SUM(G52:G53) -> 13549694
B55: Прибыль на акцию:
B56: Базовая прибыль на акцию | F56: =F48/18750 -> 301.3426133 | G56: =G48/18750 -> 454.9770667
B58: Председатель Правления ______________________________________Е.С.Еденбаев
B59: (подпись)
B61: Главный бухгалтер ______________________________________А.С.Сагиндыкова
B62: (подпись)
B63: Место печати

Sheet ФО3
A2: Консолидированный отчет о движении денег
A3: по состоянию на " 30 " сентября 2013 года
A4: (прямой метод)
A5: (Форма 3)
A7: Наименование организации АО "Корпорация "Цесна"
A8: Вид деятельности организации 74150,70201,51909,74202,67120, 65121
A9: Организационно-правовая форма Акционерное общество
A10: Юридический адрес организации г. Астана, ул.Бейбитшилик, 43
A12: единица измерения | D12: тыс.тенге
A13: Наименование показателей | B13: Код стр. | C13: За отчетный период | D13: За предыдущий период
A14: I. Движение денежных средств от операционной деятельности
A15: 1. Поступление денежных средств, всего | B15: 10 | C15: =SUM(C17:C21) -> 6001831084 | D15: =SUM(D17:D21) -> 4330824528
A16: в том числе:
A17: реализация товаров | B17: 11 | C17: 9817851 | D17: 8510784
A18: предоставление услуг | B18: 12 | C18: 14456862 | D18: 22467594
A19: авансы полученные | B19: 13 | C19: 4785092 | D19: 1664051
A20: дивиденды,вознаграждения | B20: 14 | C20: -9424 | D20: 17882
A21: прочие поступления | B21: 15 | C21: 5972780703 | D21: 4298164217
A22: 2. Выбытие денежных средств, всего | B22: 20 | C22: =SUM(C24:C30) -> 6018310212 | D22: =SUM(D24:D30) -> 4328394816
A23: в том числе:
A24: платежи поставщикам за товары и услуги | B24: 21 | C24: 16801667 | D24: 25588813
A25: авансы выданные | B25: 22 | C25: 5020918 | D25: 3462663
A26: выплаты по заработной плате | B26: 23 | C26: 7487886 | D26: 7429283
A27: выплата вознаграждения по займам | B27: 24 | C27: 292606 | D27: 18215852
A28: корпоративный подоходный налог | B28: 25 | C28: 5283942 | D28: 203
A29: подоходный налог и другие платежи в бюджет | B29: 26 | C29: 711786 | D29: 4561268
A30: прочие выплаты | B30: 27 | C30: 5982711407 | D30: 4269136734
A31: 3. Чистая сумма денежных средств от операционной деятельности (стр.010-стр.020) | B31: 30 | C31: =C15-C22 -> -16479128 | D31: =D15-D22 -> 2429712
A32: II. Движение денежных средств от инвестиционной деятельности
A33: 1. Поступление денежных средств, всего | B33: 40 | C33: =SUM(C35:C41) -> 7283941 | D33: =SUM(D35:D41) -> 4785440
A34: в том числе:
A35: реализация основных средств | B35: 41 | C35: 262959 | D35: 81534
A36: реализация нематериальных активов | B36: 42 | C36: =[4]Сводная!BG32 -> 0 | D36: 0
A37: реализация других долгосрочных активов | B37: 43 | C37: 55533 | D37: 0
A38: реализация финансовых активов | B38: 44 | C38: 6965449 | D38: 3708852
A39: погашение займов, предоставленных другим организациям | B39: 45 | D39: 0
A40: фьючерсные и форвардные контракты, опционы и свопы | B40: 46 | C40: =[4]Сводная!BG36 -> 0 | D40: 0
A41: прочие поступления | B41: 47 | D41: 995054
A42: 2. Выбытие денежных средств, всего | B42: 50 | C42: 6965449 | D42: =SUM(D44:D50) -> 21701496
A43: в том числе:
A44: приобретение основных средств | B44: 51 | C44: 11743042 | D44: 1715522
A45: приобретение нематериальных активов | B45: 52 | C45: 201376 | D45: 118346
A46: приобретение других долгосрочных активов | B46: 53 | C46: 70000 | D46: 561000
A47: приобретение финансовых активов | B47: 54 | C47: 19708551 | D47: 18480442
A48: предоставление займов другим организациям | B48: 55
A49: фьючерсные и форвардные контракты, опционы и свопы | B49: 56
A50: прочие выплаты | B50: 57 | C50: 192335 | D50: 826186
A51: 3. Чистая сумма денежных средств от инвестиционной деятельности (стр.040-стр.050) | B51: 60 | C51: -24631363 | D51: =D33-D42 -> -16916056
A52: III. Движение денежных средств от финансовой деятельности
A53: 1. Поступление денежных средств, всего | B53: 70 | C53: =SUM(C55:C58) -> 48347695 | D53: =SUM(D55:D58) -> 23033625
A54: в том числе:
A55: эмиссия акций и других ценных бумаг | B55: 71 | C55: 31045000
A56: получение займов | B56: 72 | C56: 17270270 | D56: 7497169
A57: получение вознаграждения по финансируемой аренде | B57: 73
A58: прочие поступления | B58: 74 | C58: 32425 | D58: 15536456
A59: 2. Выбытие денежных средств, всего | B59: 80 | C59: =SUM(C61:C64) -> 8331256 | D59: =D61+D64+D63 -> 16428821
A60: в том числе:
A61: погашение займов | B61: 81 | C61: 6896891 | D61: 9871320
A62: приобретение собственных акций | B62: 82
A63: выплата дивидендов | B63: 83 | D63: 250390
A64: прочие | B64: 84 | C64: 1434365 | D64: 6307111
A65: 3. Чистая сумма денежных средств от финансовой деятельности (стр.070-стр.080) | B65: 90 | C65: =C53-C59 -> 40016439 | D65: =D53-D59 -> 6604804
A66: 4. Курсовая разница | B66: 100 | C66: 7505 | D66: -55764
A67: Итого: Увеличение +/- уменьшение денежных средств (стр.030+/-стр.060+/-стр.090) | C67: =C31+C51+C65 -> -1094052 | D67: =D31+D51+D65+D66 -> -7937304
A68: Денежные средства и их эквиваленты на начало отчетного периода | C68: 36048596 | D68: 19597050
A69: Денежные средства и их эквиваленты на конец отчетного периода | C69: =C67+C68+C66 -> 34962049 | D69: =D67+D68 -> 11659746
A71: Председатель Правления _____________________________________Е.С. Еденбаев
A72: (подпись)
A74: Главный бухгалтер _________________________________________С.В.Денисенко | D74: А.С.Сагиндыкова
A75: (подпись)
A76: Место печати

Sheet ФО4
B2: ОТЧЕТ ОБ ИЗМЕНЕНИЯХ В КАПИТАЛЕ
B3: (консолидированный)
B4: АО 'Корпорация "Цесна"'
B5: по состоянию на 30 сентября 2013 года.
K7: в тысячах тенге
C8: Акционерный капитал | D8: Резервы по переоценке активов, имеющихся в наличии для продажи | E8: Резерв накопленных курсовых разниц по пересчету в другую валюту | F8: Резерв на покрытие общих банковских рисков | G8: Дополнительно оплаченный капитал | H8: Нераспределенная прибыль | I8: Итого | J8: Доля миноритариев | K8: Итого капитала
B9: 1 | C9: 2 | D9: 4 | E9: 5 | F9: 6 | G9: 7 | H9: 8 | I9: 9 | J9: 10 | K9: 11
B10: Остаток на 01 января 2012 г. | C10: 18750000 | D10: 335840 | E10: 44701 | F10: 1542478 | G10: -4567633 | H10: 11561111 | I10: =SUM(C10:H10) -> 27666497 | J10: 12379431 | K10: =I10+J10 -> 40045928
B11: Итого совокупного дохода | K11: 0
B12: Чистый доход за год | H12: 10011034 | I12: =SUM(C12:H12) -> 10011034 | J12: 4119831 | K12: 14130865
B13: Прочий совокупный доход | I13: =SUM(C13:H13) -> 0 | K13: 0
B14: Чистое изменение справедливой стоимости активов, имеющихся в наличии для продажи, перенесенное в состав прибыли или убытка за период | D14: 11200 | I14: 11200 | J14: 6070 | K14: 17270
B15: Чистое изменение справедливой стоимости активов, имеющихся в наличии для продажи | D15: -48335 | I15: -48335 | J15: -26198 | K15: -74533
B16: Курсовые разницы | E16: -78453 | I16: -78453 | K16: -78453
B17: Накопленный резерв дочерней организации, по переоценке активов, имеющихся в наличии для продажи на начало отчетного периода | I17: 0
B18: Перевод между резервами | F18: 4146175 | H18: -4146175 | I18: 0 | K18: 0
B19: Влияние изменения налоговых ставок на отсроченный налог, признанный в составе капитала | I19: 0 | K19: 0
B20: Накопленная сумма прибыли дочерней организации на начало отчетного периода | I20: 0
B21: Итого прочего совокупного дохода | C21: =C14+C15+C18+C19+C16 -> 0 | D21: =D14+D15+D18+D19+D16+D17 -> -37135 | E21: =E14+E15+E18+E19+E16+E17 -> -78453 | F21: =F14+F15+F18+F19+F16+F17 -> 4146175 | G21: =G14+G15+G18+G19+G16+G17 -> 0 | H21: =H14+H15+H18+H19+H16+H20 -> -4146175 | I21: -115588 | J21: =SUM(J13:J19) -> -20128 | K21: -135716
B22: Итого совокупного дохода | C22: =C12+C21 -> 0 | D22: -37135 | E22: -78453 | F22: 4146175 | G22: =G12+G21 -> 0 | H22: 5864859 | I22: 9895446 | J22: =J21+J12 -> 4099703 | K22: 13995149
B23: Сделки с собственниками, признанные непосредственно в капитале
B24: Приобретение дочернего предприятия | I24: 0 | K24: 0
B25: Приобретение доли меньшинства | I25: 0 | K25: 0
B26: Взносы акционеров | I26: 0 | K26: 0
B27: Распределение доли меньшинства | I27: 0 | K27: 0
B28: Выбытие дочернего предприятия | D28: -20840 | G28: 218117 | H28: 1146738 | I28: 1344015 | J28: =1458513-610072 -> 848441 | K28: 2192456
B29: Выпуск акций | I29: 0 | K29: 0
B30: Формирование резервов | I30: 0 | K30: 0
B31: Итого сделок с собственниками | I31: 0 | J31: =SUM(J24:J28) -> 848441 | K31: =SUM(K24:K28) -> 2192456
I32: 0 | K32: 0
B33: Остаток на 31 декабря 2012 г. | C33: =C10+C22+C32 -> 18750000 | D33: =D10+D22+D32+D27+D28 -> 277865 | E33: =E10+E22+E32+E27 -> -33752 | F33: =F10+F22+F32+F30+F27 -> 5688653 | G33: =G10+G24+G27+G28+G16+G18 -> -4349516 | H33: =H10+H12+H18+H20+H30+H27+H26+H28 -> 18572708 | I33: =SUM(C33:H33) -> 38905958 | J33: =J10+J22+J31+J29 -> 17327575 | K33: 56233533
K34: 0
B35: Остаток на 01 января 2013 г. | C35: 18750000 | D35: =D33 -> 277865 | E35: =E33 -> -33752 | F35: 5688653 | G35: -4349516 | H35: 18572708 | I35: 38905958 | J35: 17327575 | K35: 56233533
B36: Итого совокупного дохода | I36: 0 | K36: 0
B37: Чистый доход за год | H37: =10572614-J37 -> 5650174 | I37: 5650174 | J37: 4922440 | K37: 10572614
B38: Прочий совокупный доход | I38: 0 | K38: 0
B39: Чистое изменение справедливой стоимости активов, имеющихся в наличии для продажи, перенесенное в состав прибыли или убытка за период | D39: 22923 | I39: 22923 | K39: 22923
B40: Чистое изменение справедливой стоимости активов, имеющихся в наличии для продажи | D40: -10434 | I40: -10434 | K40: -10434
B41: Накопленный резерв дочерней организации, по переоценке активов, имеющихся в наличии для продажи на начало отчетного периода | I41: 0 | K41: 0
B42: стабилизационный резерв по страховой деятельности | E42: 102395 | H42: -102395 | I42: 0 | K42: 0
B43: Перевод резерва по переоценке в состав нераспределенной стоимости по использованию переоцененной собственности | I43: 0 | K43: 0
B44: Накопленная сумма прибыли дочерней организации на начало отчетного периода | D44: 712 | H44: 654 | I44: 1366 | K44: 1366
B45: Итого прочего совокупного дохода | C45: =C39+C40+C41+C43+C42+C44 -> 0 | D45: 13201 | E45: 102395 | F45: 0 | G45: =G37+G39+G40+G41+G43+G42+G44 -> 0 | H45: =H39+H40+H41+H43+H42+H44 -> -101741 | I45: =I39+I40+I41+I43+I42+I44 -> 13855 | K45: 13855
B46: Итого совокупного дохода | C46: =C37+C45 -> 0 | D46: 13201 | E46: 102395 | F46: =F37+F45 -> 0 | G46: =G45 -> 0 | H46: =H45+H37 -> 5548433 | I46: =I45+I37 -> 5664029 | J46: =SUM(J37:J45) -> 4922440 | K46: 10586469
B47: Сделки с собственниками, признанные непосредственно в капитале
B48: Выплата дивидендов | H48: =2000000+1980000 -> 3980000 | I48: 3980000 | K48: 3980000
B49: Изменение в учетной политике | I49: 0 | K49: 0
B50: Распределение долей неконтролирующих акционеров | G50: 34828 | H50: 327703 | I50: =SUM(C50:H50) -> 362531 | J50: 1980561 | K50: 2343092
B51: Перевод между резервами | F51: 4992972 | H51: -4992972 | K51: 0
B52: Перевод резерва | I52: =SUM(C52:H52) -> 0 | K52: 0
B53: Выпуск акций | I53: 0 | K53: 0
B54: Остаток на 30 сентября 2013 г. | C54: =C35+C46+C53+C51 -> 18750000 | D54: =D35+D46+D53+D51+D50 -> 291066 | E54: =E35+E46+E53+E51+E50 -> 68643 | F54: =F35+F46+F53+F51+F52+F50 -> 10681625 | G54: =G35+G46+G53+G51+G50+G52 -> -4314688 | H54: =H35+H46+H53+H51+H48+H49+H50+H52 -> 23435872 | I54: =SUM(C54:H54) -> 48912518 | J54: =J35+J46+J50+J53+J52 -> 24230576 | K54: =I54+J54 -> 73143094
C56: =-C54 -> -18750000 | D56: =#REF! ->  | E56: =#REF! ->  | F56: =#REF! ->  | G56: =#REF! ->  | H56: =#REF!+#REF! ->  | I56: =I35+I46+I50+I49 -> 44932518 | J56: =#REF! ->  | K56: =#REF! -> 
B57: Председатель Правления ______________________Е.С.Еденбаев
B58: (подпись)
H59: =H56+H54 ->  | I59: =I56+I54 -> 93845036
B60: Главный бухгалтер ______________________________________________ | E60: А.С.Сагиндыкова
B61: (подпись)
B62: Место печати
H69: =I63-H63 -> 0
